{"text_format":"1","workbook":"xlsx","n_sheets":2,"sheets":["Approvals process","Help"],"not_rendered":{"charts":0,"images":3,"macros":1,"external_links":0,"defined_names":45,"comments":1,"pivot_tables":0},"unopened":[],"bounds":{"document_bytes":16777216,"sheet_cells":100000,"rows_first":2000,"rows_last":500,"rows_between":2000,"halvings":0,"cell_chars":16384,"cell_head_chars":4096},"cells_cut":0,"cells_raw":0,"read":"whole","date_system":"1900"}

{"sheet":"Approvals process","index":0,"n_rows":335,"n_cols":96,"rows_kept":335,"cut":false,"hidden":false,"merged":[[75,2,75,3],[3,1,3,6]]}
[]
[null,"EGN 068: Environmental Planning Calculator"]
[null,"Version 31, 17 December 2024",null,null,null,null,null,null,null,null,null,null,null,null,null,null,null,null,null,null,null,null,null,null,null,null,null,"Y"]
[null,"NOTE: If Excel is blocking this file from running claiming a 'SECURITY RISK' then follow these steps:\nSTEP 1 – Go File > Save As and save to your computer with a different name\nSTEP 2 – Close Excel\nSTEP 3 – Open the file from your computer"]
[null,null,null,null,null,null,null,null,null,null,null,null,null,null,null,null,null,null,null,null,null,null,null,null,null,null,null,"N"]
[null,"Project details"]
[]
[]
[null,"Project Number",null,"[enter project number here]"]
[]
[null,"Project Name",null,"[enter project name here]"]
[]
[null,"Project Scope",null,"[enter project scope here - include all associated activities such as access tracks, work pads, storage areas etc.]"]
[]
[null,"Assessor",null,"[enter assessor name here]"]
[]
[null,"Date assessed",null,"[enter assessment date here]",null,null,null,null,null,null,null,null,{"$f":"IF(q_1=\"y\",1,0)","v":0},{"$f":"IF(q_1=\"n\",1,0)","v":0},{"$f":"IF(q_1b=\"y\",1,0)","v":0},{"$f":"IF(q_1b=\"n\",1,0)","v":0},{"$f":"IF(q_1b2=\"y\",1,0)","v":0},{"$f":"IF(q_1b2=\"n\",1,0)","v":0},{"$f":"IF(q_2=\"y\",1,0)","v":0},{"$f":"IF(q_2=\"n\",1,0)","v":0},{"$f":"IF(q_3=\"y\",1,0)","v":0},{"$f":"IF(q_3=\"n\",1,0)","v":0},{"$f":"IF(q_4=\"y\",1,0)","v":1},{"$f":"IF(q_4=\"n\",1,0)","v":0},{"$f":"IF(q_5=\"y\",1,0)","v":0},{"$f":"IF(q_5=\"n\",1,0)","v":0},{"$f":"IF(q_6=\"y\",1,0)","v":0},{"$f":"IF(q_6=\"n\",1,0)","v":0},{"$f":"IF(q_7=\"y\",1,0)","v":0},{"$f":"IF(q_7=\"n\",1,0)","v":0},{"$f":"IF(q_8=\"y\",1,0)","v":0},{"$f":"IF(q_8=\"n\",1,0)","v":0},{"$f":"IF(q_9=\"y\",1,0)","v":0},{"$f":"IF(q_9=\"n\",1,0)","v":0},{"$f":"IF(q_10=\"y\",1,0)","v":0},{"$f":"IF(q_10=\"n\",1,0)","v":0},{"$f":"IF(q_11=\"y\",1,0)","v":0},{"$f":"IF(q_11=\"n\",1,0)","v":0},{"$f":"IF(q_12=\"y\",1,0)","v":0},{"$f":"IF(q_12=\"n\",1,0)","v":0},{"$f":"IF(q_13=\"y\",1,0)","v":0},{"$f":"IF(q_13=\"n\",1,0)","v":0},{"$f":"IF(q_14=\"y\",1,0)","v":0},{"$f":"IF(q_14=\"n\",1,0)","v":0},{"$f":"IF(q_15=\"y\",1,0)","v":0},{"$f":"IF(q_15=\"n\",1,0)","v":0}]
[]
[]
[]
[]
[null,"Project assessment"]
[]
[null,"Generate a WebGIS-Environmental layers report or use the WebGIS leaf tool"]
[null,"WebGIS EL",null,"To get access to WebGIS EL, please email environmentalservices@ausgrid.com.au. You will need to demonstrate that it is required for your work and then complete mandatory training. The training is a requirement to ensure that you understand the data, its acceptable use and the limitations. Alternatively the WebGIS 'leaf tool' can be used (layers not visible).",null,null,null,null,null,null,"Blank rows with '1'",null,"Step 1 Yes","Step 1 No","Step 1b Yes","Step 1b No","Step 1b2 Yes","Step 1b2 No","Step 2 Yes","Step 2 No","Step 3 Yes","Step 3 No","Step 4 Yes","Step 4 No","Step 5 Yes","Step 5 No","Step 6 Yes","Step 6 No","Step 7 Yes","Step 7 No","Step 8 Yes","Step 8 No","Step 9 Yes","Step 9 No","Step 10 Yes","Step 10 No","Step 11 Yes","Step 11 No","Step 12 Yes","Step 12 No","Step 13 Yes","Step 13 No","Step 14 Yes","Step 14 No","Step 15 Yes","Step 15 No",null,null,null,null,null,null,null,null,null,null,null,null,null,null,null,null,1,1,"1b","1b","1b2","1b2",2,2,3,3,4,4,5,5,6,6,7,7,8,8,9,9,10,10,11,11,12,12,13,13,14,14,15,15]
[null,null,null,null,null,null,null,null,null,null,{"$f":"MAX(BK26:CR26)","v":0}]
[null,"Planning approval process",null,null,null,null,null,null,null,null,0]
[null,null,null,null,null,null,null,null,null,null,0]
[null,"STEP 1. Are all the works covered by an existing planning approval?",null,null,null,null,null,null,null,null,0,null,null,null,null,null,null,null,null,null,null,null,null,null,null,null,null,null,null,null,null,null,null,null,null,null,null,null,null,null,null,null,null,null,null,null,null,null,null,null,null,null,null,null,null,null,null,null,null,null,null,null,{"$f":"M29*M$17","v":0},{"$f":"N29*N$17","v":0},{"$f":"O29*O$17","v":0},{"$f":"P29*P$17","v":0},{"$f":"Q29*Q$17","v":0},0,{"$f":"S29*S$17","v":0},{"$f":"T29*T$17","v":0},{"$f":"U29*U$17","v":0},{"$f":"V29*V$17","v":0},{"$f":"W29*W$17","v":0},{"$f":"X29*X$17","v":0},{"$f":"Y29*Y$17","v":0},{"$f":"Z29*Z$17","v":0},{"$f":"AA29*AA$17","v":0},{"$f":"AB29*AB$17","v":0},{"$f":"AC29*AC$17","v":0},{"$f":"AD29*AD$17","v":0},{"$f":"AE29*AE$17","v":0},{"$f":"AF29*AF$17","v":0},{"$f":"AG29*AG$17","v":0},{"$f":"AH29*AH$17","v":0},{"$f":"AI29*AI$17","v":0},{"$f":"AJ29*AJ$17","v":0},{"$f":"AK29*AK$17","v":0},{"$f":"AL29*AL$17","v":0},{"$f":"AM29*AM$17","v":0},{"$f":"AN29*AN$17","v":0},{"$f":"AO29*AO$17","v":0},{"$f":"AP29*AP$17","v":0},{"$f":"AQ29*AQ$17","v":0},{"$f":"AR29*AR$17","v":0},{"$f":"AS29*AS$17","v":0},{"$f":"AT29*AT$17","v":0}]
[null,null,null,null,null,null,null,null,null,null,0,null,null,1,null,null,null,1,null,null,null,null,null,null,null,null,null,null,null,null,null,null,null,null,null,null,null,null,null,null,null,null,null,null,null,null,null,null,null,null,null,null,null,null,null,null,null,null,null,null,null,null,0,0,0,0,null,null,0,0,0,0,0,0,0,0,0,0,0,0,0,0,0,0,0,0,0,0,0,0,0,0,0,0,0,0]
[null,null,null,"Answer 'y' if the works are all included in the scope of an existing planning approval (SER, REF, EIS, SIS or DA) and the approval is less than five years old (more)\n",null,null,null,null,null,null,0,null,null,1,null,null,null,1,null,null,null,null,null,null,null,null,null,null,null,null,null,null,null,null,null,null,null,null,null,null,null,null,null,null,null,null,null,null,null,null,null,null,null,null,null,null,null,null,null,null,null,null,{"$f":"M31*M$17","v":0},{"$f":"N31*N$17","v":0},0,0,null,null,0,0,0,0,0,0,0,0,0,0,0,0,0,0,0,0,0,0,0,0,0,0,0,0,0,0,0,0]
[null,null,{"$f":"IF(ISBLANK(D32),\"                           If required add supporting comments here and add any specific instructions in STEP 17\",\"\")","v":"                           If required add supporting comments here and add any specific instructions in STEP 17"},null,null,null,null,null,null,null,0,null,null,null,null,null,null,null,null,null,null,null,null,null,null,null,null,null,null,null,null,null,null,null,null,null,null,null,null,null,null,null,null,null,null,null,null,null,null,null,null,null,null,null,null,null,null,null,null,null,null,null,0,0,0,0,{"$f":"Q32*Q$17","v":0},0,0,0,0,0,0,0,0,0,0,0,0,0,0,0,0,0,0,0,0,0,0,0,0,0,0,0,0,0]
[null,null,null,null,null,null,null,null,null,null,0,null,null,null,null,null,null,null,null,null,null,null,null,null,null,null,null,null,null,null,null,null,null,null,null,null,null,null,null,null,null,null,null,null,null,null,null,null,null,null,null,null,null,null,null,null,null,null,null,null,null,null,0,0,0,0,0,0,0,0,0,0,0,0,0,0,0,0,0,0,0,0,0,0,0,0,0,0,0,0,0,0,0,0,0,0]
[null,"STEPS 2 - 9 and 12 - 14. *** Should be covered by the existing planning approval ***",null,null,null,null,null,null,null,null,{"$f":"IF(q_1=\"y\",0,1)","v":1},null,null,1,null,1,null,1,null,null,null,null,null,null,null,null,null,null,null,null,null,null,null,null,null,null,null,null,null,null,null,null,null,null,null,null,null,null,null,null,null,null,null,null,null,null,null,null,null,null,null,null,0,0,0,0,null,null,0,0,0,0,0,0,0,0,0,0,0,0,0,0,0,0,0,0,0,0,0,0,0,0,0,0,0,0]
[null,"STEP 1b. Are all the works telecommunications (eg NBN, 5G, Optus cabling etc.) and",null,null,null,null,null,null,null,null,{"$f":"MAX(BK35:CR35)","v":0},null,1,null,null,null,null,null,null,null,null,null,null,null,null,null,null,null,null,null,null,null,null,null,null,null,null,null,null,null,null,null,null,null,null,null,null,null,null,null,null,null,null,null,null,null,null,null,null,null,null,null,{"$f":"M35*M$17","v":0},{"$f":"N35*N$17","v":0},0,0,{"$f":"Q35*Q$17","v":0},0,0,0,0,0,0,0,0,0,0,0,0,0,0,0,0,0,0,0,0,0,0,0,0,0,0,0,0,0]
[null,null,"are they covered by the Telecommunications (Low‑impact Facilities) Determination?",null,null,null,null,null,null,null,0,null,1,null,null,null,null,null,null,null,null,null,null,null,null,null,null,null,null,null,null,null,null,null,null,null,null,null,null,null,null,null,null,null,null,null,null,null,null,null,null,null,null,null,null,null,null,null,null,null,null,null,{"$f":"M36*M$17","v":0},{"$f":"N36*N$17","v":0},0,0,0,0,0,0,0,0,0,0,0,0,0,0,0,0,0,0,0,0,0,0,0,0,0,0,0,0,0,0,0,0]
[null,"Determination",null,"Answer 'y' if the works are carried out on behalf of a carrier and covered by the Telecommunications (Low‑impact Facilities) Determination 2018 and specific conditions are satisfied (more).",null,null,null,null,null,null,0,null,1,null,null,1,null,null,null,null,null,null,null,null,null,null,null,null,null,null,null,null,null,null,null,null,null,null,null,null,null,null,null,null,null,null,null,null,null,null,null,null,null,null,null,null,null,null,null,null,null,null,0,0,0,0,0,0,0,0,0,0,0,0,0,0,0,0,0,0,0,0,0,0,0,0,0,0,0,0,0,0,0,0,0,0]
[null,null,null,"Will the facility avoid all impacts to areas of environmental significance?",null,null,null,null,null,null,0,null,1,null,null,1,null,null,null,null,null,null,null,null,null,null,null,null,null,null,null,null,null,null,null,null,null,null,null,null,null,null,null,null,null,null,null,null,null,null,null,null,null,null,null,null,null,null,null,null,null,null,{"$f":"M38*M$17","v":0},{"$f":"N38*N$17","v":0},0,0,0,0,0,0,0,0,0,0,0,0,0,0,0,0,0,0,0,0,0,0,0,0,0,0,0,0,0,0,0,0]
[null,"Cl 1.5",null,"Answer 'y' if the works within a conservation areas, national park, within 100m of a coastal wetland/rainforest/RAMSAR wetland etc.","WebGIS EL",null,null,null,null,null,0,null,1,null,null,1,null,null,null,null,null,null,null,null,null,null,null,null,null,null,null,null,null,null,null,null,null,null,null,null,null,null,null,null,null,null,null,null,null,null,null,null,null,null,null,null,null,null,null,null,null,null,0,0,0,0,0,0,0,0,0,0,0,0,0,0,0,0,0,0,0,0,0,0,0,0,0,0,0,0,0,0,0,0,0,0]
[null,null,{"$f":"IF(ISBLANK(D40),\"                           If required add supporting comments here and add any specific instructions in STEP 17\",\"\")","v":"                           If required add supporting comments here and add any specific instructions in STEP 17"},null,null,null,null,null,null,null,0,null,1,null,null,null,null,null,null,null,null,null,null,null,null,null,null,null,null,null,null,null,null,null,null,null,null,null,null,null,null,null,null,null,null,null,null,null,null,null,null,null,null,null,null,null,null,null,null,null,null,null,0,0,0,0,0,0,0,0,0,0,0,0,0,0,0,0,0,0,0,0,0,0,0,0,0,0,0,0,0,0,0,0,0,0]
[null,null,null,null,null,null,null,null,null,null,0,null,1,null,null,null,1,null,null,null,null,null,null,null,null,null,null,null,null,null,null,null,null,null,null,null,null,null,null,null,null,null,null,null,null,null,null,null,null,null,null,null,null,null,null,null,null,null,null,null,null,null,0,0,0,0,0,0,0,0,0,0,0,0,0,0,0,0,0,0,0,0,0,0,0,0,0,0,0,0,0,0,0,0,0,0]
[null,null,null,null,null,null,null,null,null,null,0,null,1,null,null,null,null,null,null,null,null,null,null,null,null,null,null,null,null,null,null,null,null,null,null,null,null,null,null,null,null,null,null,null,null,null,null,null,null,null,null,null,null,null,null,null,null,null,null,null,null,null,0,0,0,0,0,0,0,0,0,0,0,0,0,0,0,0,0,0,0,0,0,0,0,0,0,0,0,0,0,0,0,0,0,0]
[null,null,null,null,null,null,null,null,null,null,0,null,1,null,null,null,1,null,null,null,null,null,null,null,null,null,null,null,null,null,null,null,null,null,null,null,null,null,null,null,null,null,null,null,null,null,null,null,null,null,null,null,null,null,null,null,null,null,null,null,null,null,0,0,0,0,0,0,0,0,0,0,0,0,0,0,0,0,0,0,0,0,0,0,0,0,0,0,0,0,0,0,0,0,0,0]
[null,"STEP 2. Can the works be undertaken as Exempt development? (more)",null,null,null,null,null,null,null,null,0,null,1,null,null,null,1,null,null,null,null,null,null,null,null,null,null,null,null,null,null,null,null,null,null,null,null,null,null,null,null,null,null,null,null,null,null,null,null,null,null,null,null,null,null,null,null,null,null,null,null,null,0,0,0,0,0,0,0,0,0,0,0,0,0,0,0,0,0,0,0,0,0,0,0,0,0,0,0,0,0,0,0,0,0,0]
[null,null,null,null,null,null,null,null,null,null,0,null,1,null,null,null,1,null,null,1,null,null,null,null,null,null,null,null,null,null,null,null,null,null,null,null,null,null,null,null,null,null,null,null,null,null,null,null,null,null,null,null,null,null,null,null,null,null,null,null,null,null,0,0,0,0,0,0,0,0,0,0,0,0,0,0,0,0,0,0,0,0,0,0,0,0,0,0,0,0,0,0,0,0,0,0]
[null,null,null,"Answer 'y' if 1-6 are all correct statements:",null,null,null,null,null,null,0,null,1,null,null,null,1,null,null,1,null,null,null,null,null,null,null,null,null,null,null,null,null,null,null,null,null,null,null,null,null,null,null,null,null,null,null,null,null,null,null,null,null,null,null,null,null,null,null,null,null,null,{"$f":"M46*M$17","v":0},{"$f":"N46*N$17","v":0},0,0,0,0,0,0,0,0,0,0,0,0,0,0,0,0,0,0,0,0,0,0,0,0,0,0,0,0,0,0,0,0]
[null,"Cl 2.46",null,"1. All works are in connection with an electricity transmission or distribution network (more)",null,null,null,null,null,null,0,null,1,null,null,null,1,null,null,1,null,null,null,null,null,null,null,null,null,null,null,null,null,null,null,null,null,null,null,null,null,null,null,null,null,null,null,null,null,null,null,null,null,null,null,null,null,null,null,null,null,null,0,0,0,0,0,0,0,0,0,0,0,0,0,0,0,0,0,0,0,0,0,0,0,0,0,0,0,0,0,0,0,0,0,0]
[null,"Cl 2.22",null,"2. Complies with requirements of the BCA (or be structurally adequate where the BCA does not apply), the Blue Book (erosion and sediment control), AS 2601 (demolition of structures) and SafeWork codes (asbestos removal)","WebGIS EL (asbestos register)",null,null,null,null,null,0,null,1,null,null,null,1,null,null,1,null,null,null,null,null,null,null,null,null,null,null,null,null,null,null,null,null,null,null,null,null,null,null,null,null,null,null,null,null,null,null,null,null,null,null,null,null,null,null,null,null,null,0,0,0,0,0,0,0,0,0,0,0,0,0,0,0,0,0,0,0,0,0,0,0,0,0,0,0,0,0,0,0,0,0,0]
[null,"Cl 2.22",null,"3. No vegetation management that would require a permit (unless works in accordance with Ausgrid's Tree Safety Management Plan) (more)","Ausgrid's TSMP",null,null,null,null,null,0,null,1,null,null,null,1,null,null,1,null,null,null,null,null,null,null,null,null,null,null,null,null,null,null,null,null,null,null,null,null,null,null,null,null,null,null,null,null,null,null,null,null,null,null,null,null,null,null,null,null,null,0,0,0,0,0,0,0,0,0,0,0,0,0,0,0,0,0,0,0,0,0,0,0,0,0,0,0,0,0,0,0,0,0,0]
[null,"Cl 2.7",null,"4. Not on land within  Coastal Wetlands or Littoral Rainforests unless emergency or routine maintenance where any adverse effect on the land is restricted to the minimum possible to allow the works to be carried out) (more)","WebGIS EL (wetlands & rainforests)",null,null,null,null,null,0,null,1,null,null,null,1,null,null,1,null,null,null,null,null,null,null,null,null,null,null,null,null,null,null,null,null,null,null,null,null,null,null,null,null,null,null,null,null,null,null,null,null,null,null,null,null,null,null,null,null,null,0,0,0,0,0,0,0,0,0,0,0,0,0,0,0,0,0,0,0,0,0,0,0,0,0,0,0,0,0,0,0,0,0,0]
[null,"Cl 2.22",null,"5. No more than a minimal impact to heritage items / areas (more)","WebGIS EL (heritage items)",null,null,null,null,null,0,null,1,null,null,null,1,null,null,1,null,null,null,null,null,null,null,null,null,null,null,null,null,null,null,null,null,null,null,null,null,null,null,null,null,null,null,null,null,null,null,null,null,null,null,null,null,null,null,null,null,null,0,0,0,0,{"$f":"Q51*Q$17","v":0},0,0,0,0,0,0,0,0,0,0,0,0,0,0,0,0,0,0,0,0,0,0,0,0,0,0,0,0,0]
[null,"Cl 2.46",null,"6. The works are for any of the following purposes:",null,null,null,null,null,null,0,null,1,null,null,null,1,null,null,1,null,null,null,null,null,null,null,null,null,null,null,null,null,null,null,null,null,null,null,null,null,null,null,null,null,null,null,null,null,null,null,null,null,null,null,null,null,null,null,null,null,null,0,0,0,0,0,0,0,0,0,0,0,0,0,0,0,0,0,0,0,0,0,0,0,0,0,0,0,0,0,0,0,0,0,0]
[null,null,null,"a. installation of cables in existing conduits if the installation involves no greater soil or vegetation disturbance than necessary",null,null,null,null,null,null,0,null,1,null,null,null,1,null,null,1,null,null,null,null,null,null,null,null,null,null,null,null,null,null,null,null,null,null,null,null,null,null,null,null,null,null,null,null,null,null,null,null,null,null,null,null,null,null,null,null,null,null,0,0,0,0,0,0,0,0,0,0,0,0,0,0,0,0,0,0,0,0,0,0,0,0,0,0,0,0,0,0,0,0,0,0]
[null,null,null,"b.  maintenance of electricity lines or of poles (or associated structures) for electricity lines (more)",null,null,null,null,null,null,0,null,1,null,null,null,1,null,null,1,null,null,null,null,null,null,null,null,null,null,null,null,null,null,null,null,null,null,null,null,null,null,null,null,null,null,null,null,null,null,null,null,null,null,null,null,null,null,null,null,null,null,0,0,0,0,0,0,0,0,0,0,0,0,0,0,0,0,0,0,0,0,0,0,0,0,0,0,0,0,0,0,0,0,0,0]
[null,null,null,"c.  any of the following if the primary purpose of the development is not to increase the capacity of the network:\n(i)  replacement or re-alignment of electricity lines for conveying electricity at a voltage of 66kV or less (more), \n(ii)  installation or upgrading of electricity lines for conveying electricity at a voltage of 66kV or less that are above or below ground service lines connecting premises to the network, (more)\n(iii)  replacement of poles with similar sized poles, or of associated support structures, for electricity lines for conveying electricity at a voltage of 66kV or less,\n(iv)  re-alignment of poles, or of associated support structures, for electricity lines for conveying electricity at a voltage of 66kV or less (more)",null,null,null,null,null,null,0,null,1,null,null,null,1,null,null,1,null,null,null,null,null,null,null,null,null,null,null,null,null,null,null,null,null,null,null,null,null,null,null,null,null,null,null,null,null,null,null,null,null,null,null,null,null,null,null,null,null,null,0,0,0,0,0,0,0,0,0,0,0,0,0,0,0,0,0,0,0,0,0,0,0,0,0,0,0,0,0,0,0,0,0,0]
[null,null,null,"d.  installation, maintenance or replacement of the following:\n(i)  existing plant or equipment in an existing fenced area or in an existing building (including pillars, fuses, control points, switches, regulators and protection equipment, but not including outdoor installation of equipment designed to operate (or convey electricity) at a voltage of more than 66kV), (more)\n(ii)  street lighting if the lighting minimises light spill and artificial sky glow in accordance with the Lighting for Roads and Public Spaces Standard,\n(iii)  electricity metering,\n(iv)  electrical conductors on existing structures if the primary purpose of the development is not to increase the capacity of the network (more)",null,null,null,null,null,null,0,null,1,null,null,null,1,null,null,1,null,null,null,null,null,null,null,null,null,null,null,null,null,null,null,null,null,null,null,null,null,null,null,null,null,null,null,null,null,null,null,null,null,null,null,null,null,null,null,null,null,null,0,0,0,0,0,0,0,0,0,0,0,0,0,0,0,0,0,0,0,0,0,0,0,0,0,0,0,0,0,0,0,0,0,0]
[null,null,null,"e.  maintenance of existing access tracks in easements or rights of way, or on land subject to section 53 of the Electricity Supply Act 1995, if it is required to facilitate the maintenance of electricity lines, (more)",null,null,null,null,null,null,0,null,1,null,null,null,1,null,null,1,null,null,null,null,null,null,null,null,null,null,null,null,null,null,null,null,null,null,null,null,null,null,null,null,null,null,null,null,null,null,null,null,null,null,null,null,null,null,null,null,null,null,0,0,0,0,0,0,0,0,0,0,0,0,0,0,0,0,0,0,0,0,0,0,0,0,0,0,0,0,0,0,0,0,0,0]
[null,null,null,"f.  maintenance or replacement of pole substations, if:\n(i)  the primary purpose of the development is not to increase the capacity of the network, and\n(ii)  in the case of replacement of materials, the replacement materials are similar to the materials being replaced and the replacement does not involve any structural alterations (more)",null,null,null,null,null,null,0,null,1,null,null,null,1,null,null,1,null,null,null,null,null,null,null,null,null,null,null,null,null,null,null,null,null,null,null,null,null,null,null,null,null,null,null,null,null,null,null,null,null,null,null,null,null,null,null,null,null,null,0,0,0,0,0,0,0,0,0,0,0,0,0,0,0,0,0,0,0,0,0,0,0,0,0,0,0,0,0,0,0,0,0,0]
[null,null,null,"g.  demolition and removal (more) of electricity works if:\n(i)  the demolition is carried out in accordance with AS 2601—2001, Demolition of structures, and\n(ii)  the development is not associated with substations containing equipment designed to operate (or convey electricity) at a voltage of more than 66kV, and\n(iii)  the development will not be carried out on sites where soil is likely to be contaminated",null,null,null,null,null,null,0,null,1,null,null,null,1,null,null,1,null,null,null,null,null,null,null,null,null,null,null,null,null,null,null,null,null,null,null,null,null,null,null,null,null,null,null,null,null,null,null,null,null,null,null,null,null,null,null,null,null,null,0,0,0,0,0,0,0,0,0,0,0,0,0,0,0,0,0,0,0,0,0,0,0,0,0,0,0,0,0,0,0,0,0,0]
[null,null,null,"h.  emergency works (more) to maintain or restore a supply of electricity",null,null,null,null,null,null,0,null,1,null,null,null,1,null,null,1,null,null,null,null,null,null,null,null,null,null,null,null,null,null,null,null,null,null,null,null,null,null,null,null,null,null,null,null,null,null,null,null,null,null,null,null,null,null,null,null,null,null,0,0,0,0,0,0,0,0,0,0,0,0,0,0,0,0,0,0,0,0,0,0,0,0,0,0,0,0,0,0,0,0,0,0]
[null,null,null,"i.  construction, maintenance or realignment of security fencing with a height of not more than 3.2m above ground level (existing)",null,null,null,null,null,null,0,null,1,null,null,null,1,null,null,1,null,null,null,null,null,null,null,null,null,null,null,null,null,null,null,null,null,null,null,null,null,null,null,null,null,null,null,null,null,null,null,null,null,null,null,null,null,null,null,null,null,null,0,0,0,0,0,0,0,0,0,0,0,0,0,0,0,0,0,0,0,0,0,0,0,0,0,0,0,0,0,0,0,0,0,0]
[null,"TSMP",null,"k. vegetation management that is:\n- in accordance with a tree management plan established under clause 37 of the Electricity Supply (Safety and Network Management) Regulation 2014, or\n- vegetation management that is exempted under clauses 24 and 35 (4) of Schedule 5A to the Local Land Services Act 2013, or\n- vegetation management that is carried out on category 1-exempt land (within the meaning of section 60D of the Local Land Services Act 2013\nNOTE: Vegetation management must minimise the risk of soil erosion\n",null,null,null,null,null,null,0,null,1,null,null,null,1,null,null,1,null,null,null,null,null,null,null,null,null,null,null,null,null,null,null,null,null,null,null,null,null,null,null,null,null,null,null,null,null,null,null,null,null,null,null,null,null,null,null,null,null,null,0,0,0,0,0,0,0,0,0,0,0,0,0,0,0,0,0,0,0,0,0,0,0,0,0,0,0,0,0,0,0,0,0,0]
[null,null,null,"l.  environmental management works (more) in an existing fenced area or in an existing building",null,null,null,null,null,null,0,null,1,null,null,null,1,null,null,1,null,null,null,null,null,null,null,null,null,null,null,null,null,null,null,null,null,null,null,null,null,null,null,null,null,null,null,null,null,null,null,null,null,null,null,null,null,null,null,null,null,null,0,0,0,0,0,0,0,0,0,0,0,0,0,0,0,0,0,0,0,0,0,0,0,0,0,0,0,0,0,0,0,0,0,0]
[null,"Cl 2.41",null,"m. Wind turbines and solar systems - subject to certain conditions (more)",null,null,null,null,null,null,0,null,1,null,null,null,1,null,null,1,null,null,null,null,null,null,null,null,null,null,null,null,null,null,null,null,null,null,null,null,null,null,null,null,null,null,null,null,null,null,null,null,null,null,null,null,null,null,null,null,null,null,{"$f":"M64*M$17","v":0},{"$f":"N64*N$17","v":0},0,0,0,0,0,0,0,0,0,0,0,0,0,0,0,0,0,0,0,0,0,0,0,0,0,0,0,0,0,0,0,0]
[null,"Cl 2.143",null,"n. Telecommunications - subject to certain conditions (more)",null,null,null,null,null,null,0,null,1,null,null,null,1,null,null,1,null,null,null,null,null,null,null,null,null,null,null,null,null,null,null,null,null,null,null,null,null,null,null,null,null,null,null,null,null,null,null,null,null,null,null,null,null,null,null,null,null,null,{"$f":"M65*M$17","v":0},{"$f":"N65*N$17","v":0},0,0,0,0,0,0,0,0,0,0,0,0,0,0,0,0,0,0,0,0,0,0,0,0,0,0,0,0,0,0,0,0]
[null,"Cl 2.53",null,"o. Bushfire hazard reduction work (eg Asset Protection Zones)",null,null,null,null,null,null,0,null,1,null,null,null,1,null,null,1,null,null,null,null,null,null,null,null,null,null,null,null,null,null,null,null,null,null,null,null,null,null,null,null,null,null,null,null,null,null,null,null,null,null,null,null,null,null,null,null,null,null,{"$f":"M66*M$17","v":0},{"$f":"N66*N$17","v":0},0,0,{"$f":"Q66*Q$17","v":0},{"$f":"R66*R$17","v":0},0,0,0,0,0,0,0,0,0,0,0,0,0,0,0,0,0,0,0,0,0,0,0,0,0,0,0,0]
[null,"Sch 1",null,"p. Other minor works carried out by or on behalf of a public authority - including building alterations, fences, geotech, surveys, hoardings, retaining walls, lighting, signage etc. that meet specific conditions (more)",null,null,null,null,null,null,0,null,1,null,null,null,1,null,null,1,null,null,null,null,null,null,null,null,null,null,null,null,null,null,null,null,null,null,null,null,null,null,null,null,null,null,null,null,null,null,null,null,null,null,null,null,null,null,null,null,null,null,0,0,0,0,0,0,0,0,0,0,0,0,0,0,0,0,0,0,0,0,0,0,0,0,0,0,0,0,0,0,0,0,0,0]
[null,null,null,null,null,null,null,null,null,null,0,null,1,null,null,null,1,null,null,1,null,null,null,null,null,null,null,null,null,null,null,null,null,null,null,null,null,null,null,null,null,null,null,null,null,null,null,null,null,null,null,null,null,null,null,null,null,null,null,null,null,null,0,0,0,0,{"$f":"Q68*Q$17","v":0},0,0,0,0,0,0,0,0,0,0,0,0,0,0,0,0,0,0,0,0,0,0,0,0,0,0,0,0,0]
[null,null,{"$f":"IF(ISBLANK(D69),\"                           If required add supporting comments here and add any specific instructions in STEP 17\",\"\")","v":"                           If required add supporting comments here and add any specific instructions in STEP 17"},null,null,null,null,null,null,null,0,null,1,null,null,null,1,null,null,null,null,null,null,null,null,null,null,null,null,null,null,null,null,null,null,null,null,null,null,null,null,null,null,null,null,null,null,null,null,null,null,null,null,null,null,null,null,null,null,null,null,null,0,0,0,0,0,0,0,0,0,0,0,0,0,0,0,0,0,0,0,0,0,0,0,0,0,0,0,0,0,0,0,0,0,0]
[null,null,null,null,null,null,null,null,null,null,0,null,1,null,null,null,1,null,null,1,null,null,null,null,null,null,null,null,null,null,null,null,null,null,null,null,null,null,null,null,null,null,null,null,null,null,null,null,null,null,null,null,null,null,null,null,null,null,null,null,null,null,0,null,null,null,null,null,null,{"$f":"T70*T$17","v":0}]
[null,null,null,null,null,null,null,null,null,null,0,null,1,null,null,null,1,null,1,1,null,null,null,null,null,null,null,null,null,null,null,null,null,null,null,null,null,null,null,null,null,null,null,null,null,null,null,null,null,null,null,null,null,null,null,null,null,null,null,null,null,null,0,0,{"$f":"O71*O$17","v":0},{"$f":"P71*P$17","v":0},{"$f":"Q71*Q$17","v":0},0,{"$f":"S71*S$17","v":0},0,{"$f":"U71*U$17","v":0},{"$f":"V71*V$17","v":0},{"$f":"W71*W$17","v":0},{"$f":"X71*X$17","v":0},{"$f":"Y71*Y$17","v":0},{"$f":"Z71*Z$17","v":0},{"$f":"AA71*AA$17","v":0},{"$f":"AB71*AB$17","v":0},{"$f":"AC71*AC$17","v":0},{"$f":"AD71*AD$17","v":0},{"$f":"AE71*AE$17","v":0},{"$f":"AF71*AF$17","v":0},{"$f":"AG71*AG$17","v":0},{"$f":"AH71*AH$17","v":0},{"$f":"AI71*AI$17","v":0},{"$f":"AJ71*AJ$17","v":0},{"$f":"AK71*AK$17","v":0},{"$f":"AL71*AL$17","v":0},{"$f":"AM71*AM$17","v":0},{"$f":"AN71*AN$17","v":0},{"$f":"AO71*AO$17","v":0},{"$f":"AP71*AP$17","v":0},{"$f":"AQ71*AQ$17","v":0},{"$f":"AR71*AR$17","v":0},{"$f":"AS71*AS$17","v":0},{"$f":"AT71*AT$17","v":0}]
[null,null,null,null,null,null,null,null,null,null,0,null,1,null,null,null,1,null,1,1,null,null,null,null,null,null,null,null,null,null,null,null,null,null,null,null,null,null,null,null,null,null,null,null,null,null,null,null,null,null,null,null,null,null,null,null,null,null,null,null,null,null,0,0,0,0,0,0,0,0,0,0,0,0,0,0,0,0,0,0,0,0,0,0,0,0,0,0,0,0,0,0,0,0,0,0]
[null,null,null,null,null,null,null,null,null,null,0,null,1,null,null,null,1,null,1,null,null,null,null,null,null,null,null,null,null,null,null,null,null,null,null,null,null,null,null,null,null,null,null,null,null,null,null,null,null,null,null,null,null,null,null,null,null,null,null,null,null,null,0,0,0,0,0,0,0,0,0,0,0,0,0,0,0,0,0,0,0,0,0,0,0,0,0,0,0,0,0,0,0,0,0,0]
[null,"STEP 3. Do the works require an SER or REF (and then possible EIS)? (more)",null,null,null,null,null,null,null,null,0,null,1,null,null,null,1,null,1,null,null,null,null,null,null,null,null,null,null,null,null,null,null,null,null,null,null,null,null,null,null,null,null,null,null,null,null,null,null,null,null,null,null,null,null,null,null,null,null,null,null,null,0,0,0,0,0,0,0,0,0,0,0,0,0,0,0,0,0,0,0,0,0,0,0,0,0,0,0,0,0,0,0,0,0,0]
[null,null,null,null,null,null,null,null,null,null,0,null,1,null,null,null,1,null,1,null,null,1,null,null,null,null,null,null,null,null,null,null,null,null,null,null,null,null,null,null,null,null,null,null,null,null,null,null,null,null,null,null,null,null,null,null,null,null,null,null,null,null,0,0,0,0,0,0,0,0,0,0,0,0,0,0,0,0,0,0,0,0,0,0,0,0,0,0,0,0,0,0,0,0,0,0]
[null,"STEP 3. ","*** Not relevant if the works are Exempt Development ***",null,null,null,null,null,null,null,{"$f":"IF(q_2=\"y\",0,1)","v":1},null,1,null,null,null,1,null,null,1,null,1,null,null,null,null,null,null,null,null,null,null,null,null,null,null,null,null,null,null,null,null,null,null,null,null,null,null,null,null,null,null,null,null,null,null,null,null,null,null,null,null,0,0,0,0,null,null,0,0,0,0,0,0,0,0,0,0,0,0,0,0,0,0,0,0,0,0,0,0,0,0,0,0,0,0]
[null,"Cl 2.44",null,"Answer 'y' if 1-4 are all correct statements:\n\n1. All works are for the purpose of an electricity transmission or distribution network and carried out by or on behalf of an electricity supply authority including: (more)\n\n(a)  construction works (whether or not in a heritage conservation area), including:\n  (i)  laying and installation of cables and cable pits, co-location of cabling and erection of ventilation and access structures, bridges and tunnel adits, and construction of a tunnel or conduit for an underground cable, and\n  (ii)  alteration, demolition or relocation of a local heritage item, and\n  (iii)  alteration or relocation of a State heritage item, and\n  (iv)  installation of overhead wires and associated component parts, including support structures, and\n  (v)  construction of access tunnels or access tracks,\n(b)  emergency works or routine maintenance works,\n(c)  environmental management works,\n(d)  establishment of a new substation or an increase in the area of existing substation yards or the installation of equipment, plant or structures in existing substation yards or substation buildings,\n(e)  above or below ground co-location of telecommunications cabling and associated structures,\n(f)  an electricity generating unit to provide temporary support to the network, but only if:\n  (i)  the combined capacity of all units at the premises where the unit is located, or is intended to be located, does not exceed 5 megawatts, and\n  (ii)  none of the units is operated, or is intended to be operated, for more than 200 hours in any 12 month period.\n",null,null,null,null,null,null,{"$f":"MAX(BK77:CR77)","v":0},null,1,null,null,null,1,null,1,null,null,1,null,null,null,null,null,null,null,null,null,null,null,null,null,null,null,null,null,null,null,null,null,null,null,null,null,null,null,null,null,null,null,null,null,null,null,null,null,null,null,null,{"$f":"M77*M$17","v":0},{"$f":"N77*N$17","v":0},0,0,{"$f":"Q77*Q$17","v":0},0,0,0,0,0,0,0,0,0,0,0,0,0,0,0,0,0,0,0,0,0,0,0,0,0,0,0,0,0]
[null,"Cl 2.44A",null,"2. No works on land within Coastal Wetlands or Littoral Rainforests unless all the following apply:\n- works are for the purposes of electricity lines or telecommunication facilities related to functioning of the network\n- the developent does not involve clearing of native vegetation\n- there are measures to minimise adverse impacts\n- it is not likely to significantly affect the wetland/rainforest or water flows etc\n- it does not involve earthworks other than those ancillary to specified development (more)\nNOTE: Works that do not meet the above conditions will be either prohibited (if prohibited by another EPI), or Part 4 requiring Council approval/EIS.","WebGIS EL (wetlands & rainforests)",null,null,null,null,null,0,null,1,null,null,null,1,null,1,null,null,1,null,null,null,null,null,null,null,null,null,null,null,null,null,null,null,null,null,null,null,null,null,null,null,null,null,null,null,null,null,null,null,null,null,null,null,null,null,null,null,null,0,0,0,0,0,0,0,0,0,0,0,0,0,0,0,0,0,0,0,0,0,0,0,0,0,0,0,0,0,0,0,0,0,0]
[null,null,null,"3. No works requiring Minister consent:",null,null,null,null,null,null,0,null,1,null,null,null,1,null,1,null,null,1,null,null,null,null,null,null,null,null,null,null,null,null,null,null,null,null,null,null,null,null,null,null,null,null,null,null,null,null,null,null,null,null,null,null,null,null,null,null,null,null,0,0,0,0,0,0,0,0,0,0,0,0,0,0,0,0,0,0,0,0,0,0,0,0,0,0,0,0,0,0,0,0,0,0]
[null,"Sch 3",null,"- Designated Development (typically will not apply, however examples include mines, chemical storage areas, energy generation facilities, extractive industries, works on Sydney Opera House land etc.)",null,null,null,null,null,null,0,null,1,null,null,null,1,null,1,null,null,1,null,null,null,null,null,null,null,null,null,null,null,null,null,null,null,null,null,null,null,null,null,null,null,null,null,null,null,null,null,null,null,null,null,null,null,null,null,null,null,null,0,0,0,0,0,0,0,0,0,0,0,0,0,0,0,0,0,0,0,0,0,0,0,0,0,0,0,0,0,0,0,0,0,0]
[null,"Part 5.4",null,"- State Significant Development (SSD) (generally as for Designated Development but also works on certain lands exceeding certain thresholds eg Sydney Opera House land etc.)","WebGIS EL (SSD areas)",null,null,null,null,null,0,null,1,null,null,null,1,null,1,null,null,1,null,null,null,null,null,null,null,null,null,null,null,null,null,null,null,null,null,null,null,null,null,null,null,null,null,null,null,null,null,null,null,null,null,null,null,null,null,null,null,null,0,0,0,0,0,0,0,0,0,0,0,0,0,0,0,0,0,0,0,0,0,0,0,0,0,0,0,0,0,0,0,0,0,0]
[null,null,null,"- State Significant Infrastructure (SSI) (works likely to have a significant affect on the environment or threatened species. Note a Part 5 assessment can be used to determine this.)",null,null,null,null,null,null,0,null,1,null,null,null,1,null,1,null,null,1,null,null,null,null,null,null,null,null,null,null,null,null,null,null,null,null,null,null,null,null,null,null,null,null,null,null,null,null,null,null,null,null,null,null,null,null,null,null,null,null,0,0,0,0,0,0,0,0,0,0,0,0,0,0,0,0,0,0,0,0,0,0,0,0,0,0,0,0,0,0,0,0,0,0]
[null,null,null,"- In areas of Outstanding Biodiversity Value (these works are likely to have a significant affect threatened species ie. SSI above)","WebGIS EL (OBV areas)",null,null,null,null,null,0,null,1,null,null,null,1,null,1,null,null,1,null,null,null,null,null,null,null,null,null,null,null,null,null,null,null,null,null,null,null,null,null,null,null,null,null,null,null,null,null,null,null,null,null,null,null,null,null,null,null,null,0,0,0,0,0,0,0,0,0,0,0,0,0,0,0,0,0,0,0,0,0,0,0,0,0,0,0,0,0,0,0,0,0,0]
[null,"Cl 2.44",null,"4. No works within National Parks (unless authorised - ie complying with an 'existing interest' under the NPW Act, the terms of an easement or Section 53 of the ES Act)","WebGIS EL (National Parks)",null,null,null,null,null,0,null,1,null,null,null,1,null,1,null,null,1,null,null,null,null,null,null,null,null,null,null,null,null,null,null,null,null,null,null,null,null,null,null,null,null,null,null,null,null,null,null,null,null,null,null,null,null,null,null,null,null,0,0,0,0,0,0,0,0,0,0,0,0,0,0,0,0,0,0,0,0,0,0,0,0,0,0,0,0,0,0,0,0,0,0]
[null,null,null,null,null,null,null,null,null,null,0,null,1,null,null,null,1,null,1,null,null,1,null,null,null,null,null,null,null,null,null,null,null,null,null,null,null,null,null,null,null,null,null,null,null,null,null,null,null,null,null,null,null,null,null,null,null,null,null,null,null,null,{"$f":"M85*M$17","v":0},{"$f":"N85*N$17","v":0},0,0,0,0,0,0,0,0,0,0,0,0,0,0,0,0,0,0,0,0,0,0,0,0,0,0,0,0,0,0,0,0]
[null,null,{"$f":"IF(ISBLANK(D86),\"                           If required add supporting comments here and add any specific instructions in STEP 17\",\"\")","v":"                           If required add supporting comments here and add any specific instructions in STEP 17"},null,null,null,null,null,null,null,0,null,1,null,null,null,1,null,1,null,null,null,null,null,null,null,null,null,null,null,null,null,null,null,null,null,null,null,null,null,null,null,null,null,null,null,null,null,null,null,null,null,null,null,null,null,null,null,null,null,null,null,0,0,0,0,0,0,0,0,0,0,0,0,0,0,0,0,0,0,0,0,0,0,0,0,0,0,0,0,0,0,0,0,0,0]
[null,null,null,null,null,null,null,null,null,null,0,null,1,null,null,null,1,null,1,null,null,null,null,null,null,null,null,null,null,null,null,null,null,null,null,null,null,null,null,null,null,null,null,null,null,null,null,null,null,null,null,null,null,null,null,null,null,null,null,null,null,null,0,0,0,0,0,0,0,0,0,0,0,0,0,0,0,0,0,0,0,0,0,0,0,0,0,0,0,0,0,0,0,0,0,0]
[null,null,null,null,null,null,null,null,null,null,0,null,1,null,null,null,1,null,null,null,null,null,null,null,null,null,null,null,null,null,null,null,null,null,null,null,null,null,null,null,null,null,null,null,null,null,null,null,null,null,null,null,null,null,null,null,null,null,null,null,null,null,0,0,0,0,0,0,0,0,0,0,0,0,0,0,0,0,0,0,0,0,0,0,0,0,0,0,0,0,0,0,0,0,0,0]
[null,"Other approvals, licences and permits",null,null,null,null,null,null,null,null,0,null,1,null,null,null,1,null,null,null,null,null,null,null,null,null,null,null,null,null,null,null,null,null,null,null,null,null,null,null,null,null,null,null,null,null,null,null,null,null,null,null,null,null,null,null,null,null,null,null,null,null,0,0,0,0,0,0,0,0,0,0,0,0,0,0,0,0,0,0,0,0,0,0,0,0,0,0,0,0,0,0,0,0,0,0]
[null,"STEP 4. Aboriginal assessment and/or Heritage Impact Permit (AHIP)",null,null,null,null,null,null,null,{"$f":"IF(OR(AND(q_41=\"n\",q_42=\"n\"),AND(q_43=\"n\",q_44=\"n\")),\"n\",\"y\")","v":"y"},0,null,1,null,null,null,1,null,null,null,null,null,null,null,null,null,null,null,null,null,null,null,null,null,null,null,null,null,null,null,null,null,null,null,null,null,null,null,null,null,null,null,null,null,null,null,null,null,null,null,null,null,0,0,0,0,0,0,0,0,0,0,0,0,0,0,0,0,0,0,0,0,0,0,0,0,0,0,0,0,0,0,0,0,0,0]
[null,null,null,null,"WebGIS EL (Aboriginal heritage)",null,null,null,null,null,0,null,1,null,null,null,1,null,null,null,null,null,null,null,null,null,null,null,null,null,null,null,null,null,null,null,null,null,null,null,null,null,null,null,null,null,null,null,null,null,null,null,null,null,null,null,null,null,null,null,null,null,0,0,0,0,0,0,0,0,0,0,0,0,0,0,0,0,0,0,0,0,0,0,0,0,0,0,0,0,0,0,0,0,0,0]
[null,null,null,"Answer the following:",null,null,null,null,null,null,0,null,1,null,null,null,1,null,null,null,null,null,null,null,null,null,null,null,null,null,null,null,null,null,null,null,null,null,null,null,null,null,null,null,null,null,null,null,null,null,null,null,null,null,null,null,null,null,null,null,null,null,0,0,0,0,0,0,0,0,0,0,0,0,0,0,0,0,0,0,0,0,0,0,0,0,0,0,0,0,0,0,0,0,0,0]
[null,"Part 6",null,"1. Are the works within the WebGIS-EL buffer of a known Aboriginal site?",null,null,null,null,null,null,0,null,1,null,null,null,1,null,null,null,null,null,null,null,null,null,null,null,null,null,null,null,null,null,null,null,null,null,null,null,null,null,null,null,null,null,null,null,null,null,null,null,null,null,null,null,null,null,null,null,null,null,{"$f":"M93*M$17","v":0},{"$f":"N93*N$17","v":0},0,0,{"$f":"Q93*Q$17","v":0},0,0,0,0,0,0,0,0,0,0,0,0,0,0,0,0,0,0,0,0,0,0,0,0,0,0,0,0,0]
[null,"Guidelines",null,"2. Are the works on undisturbed land or near rock outcrops (more) with the following features?\n     – within 200m of waters, or\n     – within a sand dune system, or\n     – on a ridge top, ridge line or headland, or\n     – within 200m below or above a cliff face, or\n     – within 20m of or in a cave, rock shelter, or a cave mouth OR",null,null,null,null,null,null,{"$f":"MAX(MAX(BK94:CR94),IF(q_1=\"y\",1,0))","v":0},null,1,null,null,null,1,null,null,null,null,null,null,null,null,null,null,null,null,null,null,null,null,null,null,null,null,null,null,null,null,null,null,null,null,null,null,null,null,null,null,null,null,null,null,null,null,null,null,null,null,null,0,0,0,0,0,0,0,0,0,0,0,{"$f":"X94*X$17","v":0},0,0,0,0,0,0,0,0,0,0,0,0,0,0,0,0,0,0,0,0,0,0]
[null,null,null,"3. Will the works disturb the ground surface ? ",null,null,null,null,null,null,{"$f":"MAX(MAX(BK95:CR95),IF(q_1=\"y\",1,IF(AND(q_41=\"n\",q_42=\"n\"),1,0)))","v":0},null,1,null,null,null,1,null,null,null,null,null,null,null,null,null,null,null,null,null,null,null,null,null,null,null,null,null,null,null,null,null,null,null,null,null,null,null,null,null,null,null,null,null,null,null,null,null,null,null,null,null,0,0,0,0,0,0,0,0,0,0,0,0,0,0,0,0,0,0,0,0,0,0,0,0,0,0,0,0,0,0,0,0,0,0]
[null,"TSMP",null,"4. Could the works impact native trees? (routine vegetation maintenance is unlikely to impact trees if undertaken in accordance with Ausgrid’s Tree Safety Management Plan and clearing is to the minimum extent necessary to maintain existing and regularly maintained clearances - ie no new clearance envelopes).",null,null,null,null,null,null,{"$f":"MAX(MAX(BK96:CR96),IF(q_1=\"y\",1,IF(AND(q_41=\"n\",q_42=\"n\"),1,0)))","v":0},null,1,null,null,null,1,null,null,null,null,null,null,null,null,null,null,null,null,null,null,null,null,null,null,null,null,null,null,null,null,null,null,null,null,null,null,null,null,null,null,null,null,null,null,null,null,null,null,null,null,null,0,0,0,0,0,0,0,0,0,0,0,0,0,0,0,0,0,0,0,0,0,0,0,0,0,0,0,0,0,0,0,0,0,0]
[null,null,null,null,null,null,null,null,null,null,{"$f":"MAX(BK97:CR97)","v":0},null,1,null,null,null,1,null,null,null,null,null,null,1,null,null,null,null,null,null,null,null,null,null,null,null,null,null,null,null,null,null,null,null,null,null,null,null,null,null,null,null,null,null,null,null,null,null,null,null,null,null,0,0,0,0,0,0,0,0,0,0,0,0,0,0,0,0,0,0,0,0,0,0,0,0,0,0,0,0,0,0,0,0,0,0]
[null,null,{"$f":"IF(ISBLANK(D98),\"                           If required add supporting comments here and add any specific instructions in STEP 17\",\"\")","v":"                           If required add supporting comments here and add any specific instructions in STEP 17"},null,null,null,null,null,null,null,0,null,1,null,null,null,1,null,null,null,null,null,null,null,null,null,null,null,null,null,null,null,null,null,null,null,null,null,null,null,null,null,null,null,null,null,null,null,null,null,null,null,null,null,null,null,null,null,null,null,null,null,0,0,0,0,0,0,0,0,0,0,0,0,0,0,0,0,0,0,0,0,0,0,0,0,0,0,0,0,0,0,0,0,0,0]
[null,null,null,null,null,null,null,null,null,null,0,null,1,null,null,null,1,null,null,null,null,null,null,1,null,null,null,null,null,null,null,null,null,null,null,null,null,null,null,null,null,null,null,null,null,null,null,null,null,null,null,null,null,null,null,null,null,null,null,null,null,null,0,0,0,0,0,0,0,0,0,0,0,0,0,0,0,0,0,0,0,0,0,0,0,0,0,0,0,0,0,0,0,0,0,0]
[null,null,null,null,null,null,null,null,null,null,0,null,1,null,null,null,1,null,null,null,null,null,null,1,null,null,null,null,null,null,null,null,null,null,null,null,null,null,null,null,null,null,null,null,null,null,null,null,null,null,null,null,null,null,null,null,null,null,null,null,null,null,0,0,0,0,0,0,0,0,0,0,0,0,0,0,0,0,0,0,0,0,0,0,0,0,0,0,0,0,0,0,0,0,0,0]
[null,null,null,null,"y",null,null,null,null,null,0,null,1,null,null,null,1,null,null,null,null,null,null,null,null,null,null,null,null,null,null,null,null,null,null,null,null,null,null,null,null,null,null,null,null,null,null,null,null,null,null,null,null,null,null,null,null,null,null,null,null,null,0,0,0,0,0,0,0,0,0,0,0,0,0,0,0,0,0,0,0,0,0,0,0,0,0,0,0,0,0,0,0,0,0,0]
[null,"STEP 5. Could the works require approval to harm vegetation or take place in protected areas (NSW)?",null,null,null,null,null,null,null,null,0,null,1,null,null,null,1,null,null,null,null,null,null,null,null,null,null,null,null,null,null,null,null,null,null,null,null,null,null,null,null,null,null,null,null,null,null,null,null,null,null,null,null,null,null,null,null,null,null,null,null,null,0,0,0,0,0,0,0,{"$f":"T102*T$17","v":0},0,0,0,0,0,0,0,0,0,0,0,0,0,0,0,0,0,0,0,0,0,0,0,0,0,0]
[null,null,null,null,null,null,null,null,null,null,0,null,1,null,null,null,1,null,null,null,null,null,null,null,null,1,null,null,null,null,null,null,null,null,null,null,null,null,null,null,null,null,null,null,null,null,null,null,null,null,null,null,null,null,null,null,null,null,null,null,null,null,0,0,{"$f":"O103*O$17","v":0},{"$f":"P103*P$17","v":0},0,0,{"$f":"S103*S$17","v":0},0,{"$f":"U103*U$17","v":0},{"$f":"V103*V$17","v":0},{"$f":"W103*W$17","v":0},{"$f":"X103*X$17","v":0},{"$f":"Y103*Y$17","v":0},{"$f":"Z103*Z$17","v":0},{"$f":"AA103*AA$17","v":0},{"$f":"AB103*AB$17","v":0},{"$f":"AC103*AC$17","v":0},{"$f":"AD103*AD$17","v":0},{"$f":"AE103*AE$17","v":0},{"$f":"AF103*AF$17","v":0},{"$f":"AG103*AG$17","v":0},{"$f":"AH103*AH$17","v":0},{"$f":"AI103*AI$17","v":0},{"$f":"AJ103*AJ$17","v":0},{"$f":"AK103*AK$17","v":0},{"$f":"AL103*AL$17","v":0},{"$f":"AM103*AM$17","v":0},{"$f":"AN103*AN$17","v":0},{"$f":"AO103*AO$17","v":0},{"$f":"AP103*AP$17","v":0},{"$f":"AQ103*AQ$17","v":0},{"$f":"AR103*AR$17","v":0},{"$f":"AS103*AS$17","v":0},{"$f":"AT103*AT$17","v":0}]
[null,null,null,"Answer 'y' if ANY of the following apply:",null,null,null,null,null,null,0,null,1,null,null,null,1,null,null,null,null,null,null,null,null,1,null,null,null,null,null,null,null,null,null,null,null,null,null,null,null,null,null,null,null,null,null,null,null,null,null,null,null,null,null,null,null,null,null,null,null,null,0,0,0,0,0,0,0,0,0,0,0,0,0,0,0,0,0,0,0,0,0,0,0,0,0,0,0,0,0,0,0,0,0,0]
[null,"Part 2",null,"1. Affecting listed threatened species, endangered populations, endangered ecological communities or areas of OBV/critical habitat (more)\nNOTE: If SER/REF is required (see Step 3) - A specific assessment (5 part test) will be required.\nNOTE: If Exempt Development (see Step 2) - Approval may not be required providing works are in accordance with Ausgrid's TSMP (conditions apply).","WebGIS EL (TSs, EEC etc.)",null,null,null,null,null,0,null,1,null,null,null,1,null,null,null,null,null,null,null,null,1,null,null,null,null,null,null,null,null,null,null,null,null,null,null,null,null,null,null,null,null,null,null,null,null,null,null,null,null,null,null,null,null,null,null,null,null,0,0,0,0,0,0,0,0,0,0,0,0,0,0,0,0,0,0,0,0,0,0,0,0,0,0,0,0,0,0,0,0,0,0]
[null,"Part 5",null,"3. Any works within area subject to stewardship agreement, conservation agreement or wildlife refuge area (BC Act) or conservation area (NPW Act) unless in accordance with the agreement for the site (OEH) (more)","WebGIS EL (protected areas)",null,null,null,null,null,0,null,1,null,null,null,1,null,null,null,null,null,null,null,null,1,null,null,null,null,null,null,null,null,null,null,null,null,null,null,null,null,null,null,null,null,null,null,null,null,null,null,null,null,null,null,null,null,null,null,null,null,0,0,0,0,0,0,0,0,0,0,0,0,0,0,0,0,0,0,0,0,0,0,0,0,0,0,0,0,0,0,0,0,0,0]
[null,"S 156A",null,"4. Any works within a National Park, Nature Reserve, Regional Park, Aboriginal Area, Declared Wilderness area, Wild and Scenic River, or State Conservation Area (NPWS)","WebGIS EL (protected areas)",null,null,null,null,null,0,null,1,null,null,null,1,null,null,null,null,null,null,null,null,1,null,null,null,null,null,null,null,null,null,null,null,null,null,null,null,null,null,null,null,null,null,null,null,null,null,null,null,null,null,null,null,null,null,null,null,null,0,0,0,0,0,0,0,0,0,0,0,0,0,0,0,0,0,0,0,0,0,0,0,0,0,0,0,0,0,0,0,0,0,0]
[null,null,null,"NOTE: All works in National Parks including inspection works must comply with the OEH Protocol. New works will require approval from OEH.","OEH Protocol",null,null,null,null,null,0,null,1,null,null,null,1,null,null,null,null,null,null,null,null,1,null,null,null,null,null,null,null,null,null,null,null,null,null,null,null,null,null,null,null,null,null,null,null,null,null,null,null,null,null,null,null,null,null,null,null,null,{"$f":"M108*M$17","v":0},{"$f":"N108*N$17","v":0},0,0,{"$f":"Q108*Q$17","v":0},0,0,0,0,0,0,0,0,0,0,0,0,0,0,0,0,0,0,0,0,0,0,0,0,0,0,0,0,0]
[null,"Part 4",null,"5. Working within a State Forest or Flora Reserve (DPI) (more)","WebGIS EL (forests/flora reserves)",null,null,null,null,null,0,null,1,null,null,null,1,null,null,null,null,null,null,null,null,1,null,null,null,null,null,null,null,null,null,null,null,null,null,null,null,null,null,null,null,null,null,null,null,null,null,null,null,null,null,null,null,null,null,null,null,null,0,0,0,0,0,0,0,0,0,0,0,0,0,0,0,0,0,0,0,0,0,0,0,0,0,0,0,0,0,0,0,0,0,0]
[null,"Part 4",null,"6. Clearing timber on Crown Timber Land (DPI)","WebGIS EL (Crown timber land)",null,null,null,null,null,0,null,1,null,null,null,1,null,null,null,null,null,null,null,null,1,null,null,null,null,null,null,null,null,null,null,null,null,null,null,null,null,null,null,null,null,null,null,null,null,null,null,null,null,null,null,null,null,null,null,null,null,0,0,0,0,0,0,0,0,0,0,0,0,0,0,0,0,0,0,0,0,0,0,0,0,0,0,0,0,0,0,0,0,0,0]
[null,"Part 1",null,"7. Harming animals and plants in a marine estate (sanctuary zone, habitat protection zone, general use zone, and special purpose zone)\nNOTE: This would also include harming any part of the habitat (including soil sand shells or other material occurring naturally within the zone)",null,null,null,null,null,null,0,null,1,null,null,null,1,null,null,null,null,null,null,null,null,1,null,null,null,null,null,null,null,null,null,null,null,null,null,null,null,null,null,null,null,null,null,null,null,null,null,null,null,null,null,null,null,null,null,null,null,null,0,0,0,0,0,0,0,0,0,0,0,0,0,0,0,0,0,0,0,0,0,0,0,0,0,0,0,0,0,0,0,0,0,0]
[null,"Cl 220ZW",null,"8. Affecting aquatic threatened species, populations or ecological communities (DPI)","WebGIS EL (seagrass/mangroves)",null,null,null,null,null,0,null,1,null,null,null,1,null,null,null,null,null,null,null,null,1,null,null,null,null,null,null,null,null,null,null,null,null,null,null,null,null,null,null,null,null,null,null,null,null,null,null,null,null,null,null,null,null,null,null,null,null,0,0,0,0,0,0,0,0,0,0,0,0,0,0,0,0,0,0,0,0,0,0,0,0,0,0,0,0,0,0,0,0,0,0]
[null,"Part 7",null,"9. Dredging a waterway, obstructing fish passage or harming marine vegetation (such as seagrass, mangroves, saltmarsh etc.) unless vegetation maintenance around mangroves in accordance with Ausgrid's Mangrove Exemption) (DPI) (more)\nNOTE: Public authorities (more) are exempt from the need to obtain a permit, however, must first give the Minister written notice of the proposed work, and give due consideration to any issues raised.\nNOTE: The permit application form suggests approval is only required when excavating within key fish habitat (best to discuss with Fisheries officer if in doubt)","WebGIS EL (seagrass/mangroves)",null,null,null,null,null,0,null,1,null,null,null,1,null,null,null,null,null,null,null,null,1,null,null,null,null,null,null,null,null,null,null,null,null,null,null,null,null,null,null,null,null,null,null,null,null,null,null,null,null,null,null,null,null,null,null,null,null,{"$f":"M113*M$17","v":0},{"$f":"N113*N$17","v":0},0,0,0,0,0,0,0,0,0,0,0,0,0,0,0,0,0,0,0,0,0,0,0,0,0,0,0,0,0,0,0,0]
[null,null,null,null,"Mangrove permit",null,null,null,null,null,0,null,1,null,null,null,1,null,null,null,null,null,null,null,null,1,null,null,null,null,null,null,null,null,null,null,null,null,null,null,null,null,null,null,null,null,null,null,null,null,null,null,null,null,null,null,null,null,null,null,null,null,0,0,0,0,0,0,0,0,0,0,0,0,0,0,0,0,0,0,0,0,0,0,0,0,0,0,0,0,0,0,0,0,0,0]
[null,null,null,null,null,null,null,null,null,null,0,null,1,null,null,null,1,null,null,null,null,null,null,null,null,1,null,null,null,null,null,null,null,null,null,null,null,null,null,null,null,null,null,null,null,null,null,null,null,null,null,null,null,null,null,null,null,null,null,null,null,null,0,0,0,0,0,0,0,0,0,0,0,0,0,0,0,0,0,0,0,0,0,0,0,0,0,0,0,0,0,0,0,0,0,0]
[null,null,{"$f":"IF(ISBLANK(D116),\"                           If required add supporting comments here and add any specific instructions in STEP 17\",\"\")","v":"                           If required add supporting comments here and add any specific instructions in STEP 17"},null,null,null,null,null,null,null,0,null,1,null,null,null,1,null,null,null,null,null,null,null,null,null,null,null,null,null,null,null,null,null,null,null,null,null,null,null,null,null,null,null,null,null,null,null,null,null,null,null,null,null,null,null,null,null,null,null,null,null,0,0,0,0,0,0,0,0,0,0,0,0,0,0,0,0,0,0,0,0,0,0,0,0,0,0,0,0,0,0,0,0,0,0]
[null,null,null,null,null,null,null,null,null,null,0,null,1,null,null,null,1,null,null,null,null,null,null,null,null,1,null,null,null,null,null,null,null,null,null,null,null,null,null,null,null,null,null,null,null,null,null,null,null,null,null,null,null,null,null,null,null,null,null,null,null,null,0,0,0,0,0,0,0,0,0,0,0,0,0,0,0,0,0,0,0,0,0,0,0,0,0,0,0,0,0,0,0,0,0,0]
[null,null,null,null,null,null,null,null,null,null,0,null,1,null,null,null,1,null,null,null,null,null,null,null,null,1,null,null,null,null,null,null,null,null,null,null,null,null,null,null,null,null,null,null,null,null,null,null,null,null,null,null,null,null,null,null,null,null,null,null,null,null,0,0,0,0,0,0,0,0,0,0,0,0,0,0,0,0,0,0,0,0,0,0,0,0,0,0,0,0,0,0,0,0,0,0]
[null,null,null,null,null,null,null,null,null,null,0,null,1,null,null,null,1,null,null,null,null,null,null,null,null,null,null,null,null,null,null,null,null,null,null,null,null,null,null,null,null,null,null,null,null,null,null,null,null,null,null,null,null,null,null,null,null,null,null,null,null,null,0,0,0,0,0,0,0,0,0,0,0,0,0,0,0,0,0,0,0,0,0,0,0,0,0,0,0,0,0,0,0,0,0,0]
[null,"STEP 6. Could the works require Commonwealth Approval?",null,null,null,null,null,null,null,null,0,null,1,null,null,null,1,null,null,null,null,null,null,null,null,null,null,null,null,null,null,null,null,null,null,null,null,null,null,null,null,null,null,null,null,null,null,null,null,null,null,null,null,null,null,null,null,null,null,null,null,null,0,0,0,0,0,0,0,0,0,0,0,0,0,0,0,0,0,0,0,0,0,0,0,0,0,0,0,0,0,0,0,0,0,0]
[null,null,null,null,null,null,null,null,null,null,0,null,1,null,null,null,1,null,null,null,null,null,null,null,null,null,null,1,null,null,null,null,null,null,null,null,null,null,null,null,null,null,null,null,null,null,null,null,null,null,null,null,null,null,null,null,null,null,null,null,null,null,0,0,0,0,0,0,0,0,0,0,0,0,0,0,0,0,0,0,0,0,0,0,0,0,0,0,0,0,0,0,0,0,0,0]
[null,"EPBC Act",null,"Answer 'y' if affecting ANY of the following (more)",null,null,null,null,null,null,0,null,1,null,null,null,1,null,null,null,null,null,null,null,null,null,null,1,null,null,null,null,null,null,null,null,null,null,null,null,null,null,null,null,null,null,null,null,null,null,null,null,null,null,null,null,null,null,null,null,null,null,0,0,0,0,0,0,0,0,0,0,0,0,0,0,0,0,0,0,0,0,0,0,0,0,0,0,0,0,0,0,0,0,0,0]
[null,null,null,"1. Commonwealth listed threatened species or migratory birds","WebGIS EL (TSs, EEC etc.)",null,null,null,null,null,0,null,1,null,null,null,1,null,null,null,null,null,null,null,null,null,null,1,null,null,null,null,null,null,null,null,null,null,null,null,null,null,null,null,null,null,null,null,null,null,null,null,null,null,null,null,null,null,null,null,null,null,0,0,0,0,0,0,0,0,0,0,0,0,0,0,0,0,0,0,0,0,0,0,0,0,0,0,0,0,0,0,0,0,0,0]
[null,null,null,"2. Ramsar Wetlands","WebGIS EL (Ramsar wetlands)",null,null,null,null,null,0,null,1,null,null,null,1,null,null,null,null,null,null,null,null,null,null,1,null,null,null,null,null,null,null,null,null,null,null,null,null,null,null,null,null,null,null,null,null,null,null,null,null,null,null,null,null,null,null,null,null,null,0,0,0,0,{"$f":"Q124*Q$17","v":0},0,0,0,0,0,0,0,0,0,0,0,0,0,0,0,0,0,0,0,0,0,0,0,0,0,0,0,0,0]
[null,null,null,"3. Commonwealth Heritage, World Heritage, or National Heritage","WebGIS EL (heritage)",null,null,null,null,null,0,null,1,null,null,null,1,null,null,null,null,null,null,null,null,null,null,1,null,null,null,null,null,null,null,null,null,null,null,null,null,null,null,null,null,null,null,null,null,null,null,null,null,null,null,null,null,null,null,null,null,null,0,0,0,0,0,0,0,0,0,0,0,0,0,0,0,0,0,0,0,0,0,0,0,0,0,0,0,0,0,0,0,0,0,0]
[null,null,null,"4. Commonwealth marine areas/parks ","WebGIS EL (marine parks/areas)",null,null,null,null,null,0,null,1,null,null,null,1,null,null,null,null,null,null,null,null,null,null,1,null,null,null,null,null,null,null,null,null,null,null,null,null,null,null,null,null,null,null,null,null,null,null,null,null,null,null,null,null,null,null,null,null,null,0,0,0,0,0,0,0,0,0,0,0,0,0,0,0,0,0,0,0,0,0,0,0,0,0,0,0,0,0,0,0,0,0,0]
[null,null,null,"5. Commonwealth land (more)",null,null,null,null,null,null,0,null,1,null,null,null,1,null,null,null,null,null,null,null,null,null,null,1,null,null,null,null,null,null,null,null,null,null,null,null,null,null,null,null,null,null,null,null,null,null,null,null,null,null,null,null,null,null,null,null,null,null,0,0,0,0,0,0,0,0,0,0,0,0,0,0,0,0,0,0,0,0,0,0,0,0,0,0,0,0,0,0,0,0,0,0]
[null,null,null,null,null,null,null,null,null,null,{"$f":"MAX(BK128:CR128)","v":0},null,1,null,null,null,1,null,null,null,null,null,null,null,null,null,null,1,null,null,null,null,null,null,null,null,null,null,null,null,null,null,null,null,null,null,null,null,null,null,null,null,null,null,null,null,null,null,null,null,null,null,0,0,0,0,0,0,0,0,0,0,0,0,0,0,0,0,0,0,0,0,0,0,0,0,0,0,0,0,0,0,0,0,0,0]
[null,null,{"$f":"IF(ISBLANK(D129),\"                           If required add supporting comments here and add any specific instructions in STEP 17\",\"\")","v":"                           If required add supporting comments here and add any specific instructions in STEP 17"},null,null,null,null,null,null,null,0,null,1,null,null,null,1,null,null,null,null,null,null,null,null,null,null,null,null,null,null,null,null,null,null,null,null,null,null,null,null,null,null,null,null,null,null,null,null,null,null,null,null,null,null,null,null,null,null,null,null,null,0,0,0,0,0,0,0,0,0,0,0,0,0,0,0,0,0,0,0,0,0,0,0,0,0,0,0,0,0,0,0,0,0,0]
[null,null,null,null,null,null,null,null,null,null,0,null,1,null,null,null,1,null,null,null,null,null,null,null,null,null,null,1,null,null,null,null,null,null,null,null,null,null,null,null,null,null,null,null,null,null,null,null,null,null,null,null,null,null,null,null,null,null,null,null,null,null,0,0,0,0,0,0,0,0,0,0,0,0,0,0,0,0,0,0,0,0,0,0,0,0,0,0,0,0,0,0,0,0,0,0]
[null,null,null,null,null,null,null,null,null,null,0,null,1,null,null,null,1,null,null,null,null,null,null,null,null,null,null,1,null,null,null,null,null,null,null,null,null,null,null,null,null,null,null,null,null,null,null,null,null,null,null,null,null,null,null,null,null,null,null,null,null,null,0,0,0,0,0,0,0,0,0,0,0,0,0,0,0,0,0,0,0,0,0,0,0,0,0,0,0,0,0,0,0,0,0,0]
[null,null,null,null,null,null,null,null,null,null,0,null,1,null,null,null,1,null,null,null,null,null,null,null,null,null,null,null,null,null,null,null,null,null,null,null,null,null,null,null,null,null,null,null,null,null,null,null,null,null,null,null,null,null,null,null,null,null,null,null,null,null,0,0,0,0,0,0,0,0,0,0,0,0,0,0,0,0,0,0,0,0,0,0,0,0,0,0,0,0,0,0,0,0,0,0]
[null,"STEP 7. Could the works require a Heritage approval (NSW)?",null,null,null,null,null,null,null,null,0,null,1,null,null,null,1,null,null,null,null,null,null,null,null,null,null,null,null,null,null,null,null,null,null,null,null,null,null,null,null,null,null,null,null,null,null,null,null,null,null,null,null,null,null,null,null,null,null,null,null,null,0,0,0,0,0,0,0,{"$f":"T133*T$17","v":0},0,0,0,0,0,0,0,0,0,0,0,0,0,0,0,0,0,0,0,0,0,0,0,0,0,0]
[null,null,null,null,null,null,null,null,null,null,0,null,1,null,null,null,1,null,null,null,null,null,null,null,null,null,null,null,null,1,null,null,null,null,null,null,null,null,null,null,null,null,null,null,null,null,null,null,null,null,null,null,null,null,null,null,null,null,null,null,null,null,0,0,{"$f":"O134*O$17","v":0},{"$f":"P134*P$17","v":0},0,0,{"$f":"S134*S$17","v":0},0,{"$f":"U134*U$17","v":0},{"$f":"V134*V$17","v":0},{"$f":"W134*W$17","v":0},{"$f":"X134*X$17","v":0},{"$f":"Y134*Y$17","v":0},{"$f":"Z134*Z$17","v":0},{"$f":"AA134*AA$17","v":0},{"$f":"AB134*AB$17","v":0},{"$f":"AC134*AC$17","v":0},{"$f":"AD134*AD$17","v":0},{"$f":"AE134*AE$17","v":0},{"$f":"AF134*AF$17","v":0},{"$f":"AG134*AG$17","v":0},{"$f":"AH134*AH$17","v":0},{"$f":"AI134*AI$17","v":0},{"$f":"AJ134*AJ$17","v":0},{"$f":"AK134*AK$17","v":0},{"$f":"AL134*AL$17","v":0},{"$f":"AM134*AM$17","v":0},{"$f":"AN134*AN$17","v":0},{"$f":"AO134*AO$17","v":0},{"$f":"AP134*AP$17","v":0},{"$f":"AQ134*AQ$17","v":0},{"$f":"AR134*AR$17","v":0},{"$f":"AS134*AS$17","v":0},{"$f":"AT134*AT$17","v":0}]
[null,null,null,"Answer 'y' if ANY of the following apply:",null,null,null,null,null,null,0,null,1,null,null,null,1,null,null,null,null,null,null,null,null,null,null,null,null,1,null,null,null,null,null,null,null,null,null,null,null,null,null,null,null,null,null,null,null,null,null,null,null,null,null,null,null,null,null,null,null,null,0,0,0,0,0,0,0,0,0,0,0,0,0,0,0,0,0,0,0,0,0,0,0,0,0,0,0,0,0,0,0,0,0,0]
[null,"S 57",null,"1. Impacting State Heritage Item or carrying out work within the boundary of the item, unless in accordance with:","WebGIS EL (heritage)",null,null,null,null,null,0,null,1,null,null,null,1,null,null,null,null,null,null,null,null,null,null,null,null,1,null,null,null,null,null,null,null,null,null,null,null,null,null,null,null,null,null,null,null,null,null,null,null,null,null,null,null,null,null,null,null,null,0,0,0,0,0,0,0,0,0,0,0,0,0,0,0,0,0,0,0,0,0,0,0,0,0,0,0,0,0,0,0,0,0,0]
[null,null,null,"- an approved CMP","CMPs",null,null,null,null,null,0,null,1,null,null,null,1,null,null,null,null,null,null,null,null,null,null,null,null,1,null,null,null,null,null,null,null,null,null,null,null,null,null,null,null,null,null,null,null,null,null,null,null,null,null,null,null,null,null,null,null,null,0,0,0,0,0,0,0,0,0,0,0,0,0,0,0,0,0,0,0,0,0,0,0,0,0,0,0,0,0,0,0,0,0,0]
[null,null,null,"- an Ausgrid specific exemption, or\n","Exemptions",null,null,null,null,null,0,null,1,null,null,null,1,null,null,null,null,null,null,null,null,null,null,null,null,1,null,null,null,null,null,null,null,null,null,null,null,null,null,null,null,null,null,null,null,null,null,null,null,null,null,null,null,null,null,null,null,null,{"$f":"M138*M$17","v":0},{"$f":"N138*N$17","v":0},0,0,0,0,0,0,0,0,0,0,0,0,0,0,0,0,0,0,0,0,0,0,0,0,0,0,0,0,0,0,0,0]
[null,null,null,"- a standard exemption","Standard exemptions",null,null,null,null,null,0,null,1,null,null,null,1,null,null,null,null,null,null,null,null,null,null,null,null,1,null,null,null,null,null,null,null,null,null,null,null,null,null,null,null,null,null,null,null,null,null,null,null,null,null,null,null,null,null,null,null,null,{"$f":"M139*M$17","v":0},{"$f":"N139*N$17","v":0},0,0,0,0,0,0,0,0,0,0,0,0,0,0,0,0,0,0,0,0,0,0,0,0,0,0,0,0,0,0,0,0]
[null,"S 170",null,"2. Impacting an item on Ausgrid's Section 170 Register (unless in accordance with a CMP or exemption) (more)","WebGIS EL (S170 register)",null,null,null,null,null,0,null,1,null,null,null,1,null,null,null,null,null,null,null,null,null,null,null,null,1,null,null,null,null,null,null,null,null,null,null,null,null,null,null,null,null,null,null,null,null,null,null,null,null,null,null,null,null,null,null,null,null,0,0,0,0,{"$f":"Q140*Q$17","v":0},0,0,0,0,0,0,0,0,0,0,0,0,0,0,0,0,0,0,0,0,0,0,0,0,0,0,0,0,0]
[null,null,null,"NOTE: Ausgrid maintains a list of potential movable heritage items. Contact Environmental Services before undertaking works that could affect these items.","Exemptions",null,null,null,null,null,0,null,1,null,null,null,1,null,null,null,null,null,null,null,null,null,null,null,null,1,null,null,null,null,null,null,null,null,null,null,null,null,null,null,null,null,null,null,null,null,null,null,null,null,null,null,null,null,null,null,null,null,{"$f":"M141*M$17","v":0},{"$f":"N141*N$17","v":0},0,0,0,0,0,0,0,0,0,0,0,0,0,0,0,0,0,0,0,0,0,0,0,0,0,0,0,0,0,0,0,0]
[null,"S 139",null,"3. Working where a Relic is likely to be discovered (unless in accordance with an approved exemption)","NSW Heritage Register",null,null,null,null,null,0,null,1,null,null,null,1,null,null,null,null,null,null,null,null,null,null,null,null,1,null,null,null,null,null,null,null,null,null,null,null,null,null,null,null,null,null,null,null,null,null,null,null,null,null,null,null,null,null,null,null,null,0,0,0,0,0,0,0,0,0,0,0,0,0,0,0,0,0,0,0,0,0,0,0,0,0,0,0,0,0,0,0,0,0,0]
[null,null,null,null,"Standard exemptions",null,null,null,null,null,0,null,1,null,null,null,1,null,null,null,null,null,null,null,null,null,null,null,null,1,null,null,null,null,null,null,null,null,null,null,null,null,null,null,null,null,null,null,null,null,null,null,null,null,null,null,null,null,null,null,null,null,{"$f":"M143*M$17","v":0},{"$f":"N143*N$17","v":0},0,0,0,0,0,0,0,0,0,0,0,0,0,0,0,0,0,0,0,0,0,0,0,0,0,0,0,0,0,0,0,0]
[null,null,null,null,null,null,null,null,null,null,0,null,1,null,null,null,1,null,null,null,null,null,null,null,null,null,null,null,null,1,null,null,null,null,null,null,null,null,null,null,null,null,null,null,null,null,null,null,null,null,null,null,null,null,null,null,null,null,null,null,null,null,0,0,0,0,0,0,0,0,0,0,0,0,0,0,0,0,0,0,0,0,0,0,0,0,0,0,0,0,0,0,0,0,0,0]
[null,null,{"$f":"IF(ISBLANK(D145),\"                           If required add supporting comments here and add any specific instructions in STEP 17\",\"\")","v":"                           If required add supporting comments here and add any specific instructions in STEP 17"},null,null,null,null,null,null,null,0,null,1,null,null,null,1,null,null,null,null,null,null,null,null,null,null,null,null,null,null,null,null,null,null,null,null,null,null,null,null,null,null,null,null,null,null,null,null,null,null,null,null,null,null,null,null,null,null,null,null,null,0,0,0,0,0,0,0,0,0,0,0,0,0,0,0,0,0,0,0,0,0,0,0,0,0,0,0,0,0,0,0,0,0,0]
[null,null,null,null,null,null,null,null,null,null,0,null,1,null,null,null,1,null,null,null,null,null,null,null,null,null,null,null,null,1,null,null,null,null,null,null,null,null,null,null,null,null,null,null,null,null,null,null,null,null,null,null,null,null,null,null,null,null,null,null,null,null,0,0,0,0,0,0,0,0,0,0,0,0,0,0,0,0,0,0,0,0,0,0,0,0,0,0,0,0,0,0,0,0,0,0]
[null,null,null,null,null,null,null,null,null,null,0,null,1,null,null,null,1,null,null,null,null,null,null,null,null,null,null,null,null,1,null,null,null,null,null,null,null,null,null,null,null,null,null,null,null,null,null,null,null,null,null,null,null,null,null,null,null,null,null,null,null,null,0,0,0,0,0,0,0,0,0,0,0,0,0,0,0,0,0,0,0,0,0,0,0,0,0,0,0,0,0,0,0,0,0,0]
[null,null,null,null,null,null,null,null,null,null,0,null,1,null,null,null,1,null,null,null,null,null,null,null,null,null,null,null,null,null,null,null,null,null,null,null,null,null,null,null,null,null,null,null,null,null,null,null,null,null,null,null,null,null,null,null,null,null,null,null,null,null,0,0,0,0,0,0,0,0,0,0,0,0,0,0,0,0,0,0,0,0,0,0,0,0,0,0,0,0,0,0,0,0,0,0]
[null,"STEP 8. Could the works have Native Title or easement implications?",null,null,null,null,null,null,null,null,0,null,1,null,null,null,1,null,null,null,null,null,null,null,null,null,null,null,null,null,null,null,null,null,null,null,null,null,null,null,null,null,null,null,null,null,null,null,null,null,null,null,null,null,null,null,null,null,null,null,null,null,0,0,0,0,0,0,0,0,0,0,0,0,0,0,0,0,0,0,0,0,0,0,0,0,0,0,0,0,0,0,0,0,0,0]
[null,null,null,null,null,null,null,null,null,null,0,null,1,null,null,null,1,null,null,null,null,null,null,null,null,null,null,null,null,null,null,1,null,null,null,null,null,null,null,null,null,null,null,null,null,null,null,null,null,null,null,null,null,null,null,null,null,null,null,null,null,null,0,0,0,0,0,0,0,0,0,0,0,0,0,0,0,0,0,0,0,0,0,0,0,0,0,0,0,0,0,0,0,0,0,0]
[null,null,null,"Answer 'y' if ANY of the following apply:",null,null,null,null,null,null,0,null,1,null,null,null,1,null,null,null,null,null,null,null,null,null,null,null,null,null,null,1,null,null,null,null,null,null,null,null,null,null,null,null,null,null,null,null,null,null,null,null,null,null,null,null,null,null,null,null,null,null,{"$f":"M151*M$17","v":0},{"$f":"N151*N$17","v":0},0,0,0,0,0,0,0,0,0,0,0,0,0,0,0,0,0,0,0,0,0,0,0,0,0,0,0,0,0,0,0,0]
[null,"NT Act",null,"1. New works on Crown Lands which are not on a public road or public reserve (Native Title implications) (more)","WebGIS EL (some Crown Lands)",null,null,null,null,null,0,null,1,null,null,null,1,null,null,null,null,null,null,null,null,null,null,null,null,null,null,1,null,null,null,null,null,null,null,null,null,null,null,null,null,null,null,null,null,null,null,null,null,null,null,null,null,null,null,null,null,null,0,0,0,0,0,0,0,0,0,0,0,0,0,0,0,0,0,0,0,0,0,0,0,0,0,0,0,0,0,0,0,0,0,0]
[null,"S 45",null,"2. New works on land which is not on a public road or public reserve (easement implications) (more)",null,null,null,null,null,null,0,null,1,null,null,null,1,null,null,null,null,null,null,null,null,null,null,null,null,null,null,1,null,null,null,null,null,null,null,null,null,null,null,null,null,null,null,null,null,null,null,null,null,null,null,null,null,null,null,null,null,null,0,0,0,0,0,0,0,0,0,0,0,0,0,0,0,0,0,0,0,0,0,0,0,0,0,0,0,0,0,0,0,0,0,0]
[null,null,null,null,null,null,null,null,null,null,0,null,1,null,null,null,1,null,null,null,null,null,null,null,null,null,null,null,null,null,null,1,null,null,null,null,null,null,null,null,null,null,null,null,null,null,null,null,null,null,null,null,null,null,null,null,null,null,null,null,null,null,0,0,0,0,0,0,0,0,0,0,0,0,0,0,0,0,0,0,0,0,0,0,0,0,0,0,0,0,0,0,0,0,0,0]
[null,null,{"$f":"IF(ISBLANK(D155),\"                           If required add supporting comments here and add any specific instructions in STEP 17\",\"\")","v":"                           If required add supporting comments here and add any specific instructions in STEP 17"},null,null,null,null,null,null,null,0,null,1,null,null,null,1,null,null,null,null,null,null,null,null,null,null,null,null,null,null,null,null,null,null,null,null,null,null,null,null,null,null,null,null,null,null,null,null,null,null,null,null,null,null,null,null,null,null,null,null,null,0,0,0,0,0,0,0,0,0,0,0,0,0,0,0,0,0,0,0,0,0,0,0,0,0,0,0,0,0,0,0,0,0,0]
[null,null,null,null,null,null,null,null,null,null,0,null,1,null,null,null,1,null,null,null,null,null,null,null,null,null,null,null,null,null,null,1,null,null,null,null,null,null,null,null,null,null,null,null,null,null,null,null,null,null,null,null,null,null,null,null,null,null,null,null,null,null,0,0,0,0,{"$f":"Q156*Q$17","v":0},0,0,0,0,0,0,0,0,0,0,0,0,0,0,0,0,0,0,0,0,0,0,0,0,0,0,0,0,0]
[null,null,null,null,null,null,null,null,null,null,0,null,1,null,null,null,1,null,null,null,null,null,null,null,null,null,null,null,null,null,null,1,null,null,null,null,null,null,null,null,null,null,null,null,null,null,null,null,null,null,null,null,null,null,null,null,null,null,null,null,null,null,0,0,0,0,0,0,0,0,0,0,0,0,0,0,0,0,0,0,0,0,0,0,0,0,0,0,0,0,0,0,0,0,0,0]
[null,null,null,null,null,null,null,null,null,null,0,null,1,null,null,null,1,null,null,null,null,null,null,null,null,null,null,null,null,null,null,null,null,null,null,null,null,null,null,null,null,null,null,null,null,null,null,null,null,null,null,null,null,null,null,null,null,null,null,null,null,null,0,0,0,0,0,0,0,0,0,0,0,0,0,0,0,0,0,0,0,0,0,0,0,0,0,0,0,0,0,0,0,0,0,0]
[null,"STEP 9. Could the works require other approvals/licences?",null,null,null,null,null,null,null,null,0,null,1,null,null,null,1,null,null,null,null,null,null,null,null,null,null,null,null,null,null,null,null,null,null,null,null,null,null,null,null,null,null,null,null,null,null,null,null,null,null,null,null,null,null,null,null,null,null,null,null,null,0,0,0,0,0,0,0,0,0,0,0,0,0,0,0,0,0,0,0,0,0,0,0,0,0,0,0,0,0,0,0,0,0,0]
[null,null,null,null,null,null,null,null,null,null,{"$f":"MAX(BK160:CR160)","v":0},null,1,null,null,null,1,null,null,null,null,null,null,null,null,null,null,null,null,null,null,null,null,1,null,null,null,null,null,null,null,null,null,null,null,null,null,null,null,null,null,null,null,null,null,null,null,null,null,null,null,null,0,0,0,0,0,0,0,0,0,0,0,0,0,0,0,0,0,0,0,0,0,0,0,0,0,0,0,0,0,0,0,0,0,0]
[null,null,null,"Answer 'y' if ANY of the following apply:",null,null,null,null,null,null,0,null,1,null,null,null,1,null,null,null,null,null,null,null,null,null,null,null,null,null,null,null,null,1,null,null,null,null,null,null,null,null,null,null,null,null,null,null,null,null,null,null,null,null,null,null,null,null,null,null,null,null,0,0,0,0,0,0,0,0,0,0,0,0,0,0,0,0,0,0,0,0,0,0,0,0,0,0,0,0,0,0,0,0,0,0]
[null,"S 120",null,"1. Discharging anything to a waterway or stormwater drain (unless in accordance with Ausgrid's NS174C Environmental Handbook)",null,null,null,null,null,null,0,null,1,null,null,null,1,null,null,null,null,null,null,null,null,null,null,null,null,null,null,null,null,1,null,null,null,null,null,null,null,null,null,null,null,null,null,null,null,null,null,null,null,null,null,null,null,null,null,null,null,null,{"$f":"M162*M$17","v":0},{"$f":"N162*N$17","v":0},0,0,0,0,0,0,0,0,0,0,0,0,0,0,0,0,0,0,0,0,0,0,0,0,0,0,0,0,0,0,0,0]
[null,"Cl 56",null,"2. Discharging ‘Trade Waste’ to the sewer (unless in accordance with a Trade Waste Agreement)","Ausgrid TWPs (Ausgrid only)",null,null,null,null,null,0,null,1,null,null,null,1,null,null,null,null,null,null,null,null,null,null,null,null,null,null,null,null,1,null,null,null,null,null,null,null,null,null,null,null,null,null,null,null,null,null,null,null,null,null,null,null,null,null,null,null,null,{"$f":"M163*M$17","v":0},{"$f":"N163*N$17","v":0},0,0,0,0,0,0,0,0,0,0,0,0,0,0,0,0,0,0,0,0,0,0,0,0,0,0,0,0,0,0,0,0]
[null,"S 138",null,"3. Working on a NSW TfNSW classified road including freeway, highway, main road, tourist road etc. (TfNSW) (more)","WebGIS EL (Classified roads)",null,null,null,null,null,0,null,1,null,null,null,1,null,null,null,null,null,null,null,null,null,null,null,null,null,null,null,null,1,null,null,null,null,null,null,null,null,null,null,null,null,null,null,null,null,null,null,null,null,null,null,null,null,null,null,null,null,0,0,0,0,0,0,0,0,0,0,0,0,0,0,0,0,0,0,0,0,0,0,0,0,0,0,0,0,0,0,0,0,0,0]
[null,"S15",null,"4. Erecting structures within a Mine Subsidence District (Subsidence Advisory NSW) (more)","WebGIS EL (subsidence areas)",null,null,null,null,null,0,null,1,null,null,null,1,null,null,null,null,null,null,null,null,null,null,null,null,null,null,null,null,1,null,null,null,null,null,null,null,null,null,null,null,null,null,null,null,null,null,null,null,null,null,null,null,null,null,null,null,null,0,0,0,0,0,0,0,{"$f":"T165*T$17","v":0},0,0,0,0,0,0,0,0,0,0,0,0,0,0,0,0,0,0,0,0,0,0,0,0,0,0]
[null,"Div 6",null,"5. Extracting groundwater or water from a waterway (DPI) (more)",null,null,null,null,null,null,0,null,1,null,null,null,1,null,null,null,null,null,null,null,null,null,null,null,null,null,null,null,null,1,null,null,null,null,null,null,null,null,null,null,null,null,null,null,null,null,null,null,null,null,null,null,null,null,null,null,null,null,0,0,{"$f":"O166*O$17","v":0},{"$f":"P166*P$17","v":0},0,0,{"$f":"S166*S$17","v":0},0,{"$f":"U166*U$17","v":0},{"$f":"V166*V$17","v":0},{"$f":"W166*W$17","v":0},{"$f":"X166*X$17","v":0},{"$f":"Y166*Y$17","v":0},{"$f":"Z166*Z$17","v":0},{"$f":"AA166*AA$17","v":0},{"$f":"AB166*AB$17","v":0},{"$f":"AC166*AC$17","v":0},{"$f":"AD166*AD$17","v":0},{"$f":"AE166*AE$17","v":0},{"$f":"AF166*AF$17","v":0},{"$f":"AG166*AG$17","v":0},{"$f":"AH166*AH$17","v":0},{"$f":"AI166*AI$17","v":0},{"$f":"AJ166*AJ$17","v":0},{"$f":"AK166*AK$17","v":0},{"$f":"AL166*AL$17","v":0},{"$f":"AM166*AM$17","v":0},{"$f":"AN166*AN$17","v":0},{"$f":"AO166*AO$17","v":0},{"$f":"AP166*AP$17","v":0},{"$f":"AQ166*AQ$17","v":0},{"$f":"AR166*AR$17","v":0},{"$f":"AS166*AS$17","v":0},{"$f":"AT166*AT$17","v":0}]
[null,"Cl4",null,"6. Disturbing the road surface, damaging vegetation etc. within Sydney Olympic Park (SOPA)","WebGIS EL (SOPA area)",null,null,null,null,null,0,null,1,null,null,null,1,null,null,null,null,null,null,null,null,null,null,null,null,null,null,null,null,1,null,null,null,null,null,null,null,null,null,null,null,null,null,null,null,null,null,null,null,null,null,null,null,null,null,null,null,null,0,0,0,0,0,0,0,0,0,0,0,0,0,0,0,0,0,0,0,0,0,0,0,0,0,0,0,0,0,0,0,0,0,0]
[null,"S112",null,"7. Sinking or altering a bore (OEH)",null,null,null,null,null,null,0,null,1,null,null,null,1,null,null,null,null,null,null,null,null,null,null,null,null,null,null,null,null,1,null,null,null,null,null,null,null,null,null,null,null,null,null,null,null,null,null,null,null,null,null,null,null,null,null,null,null,null,0,0,0,0,0,0,0,0,0,0,0,0,0,0,0,0,0,0,0,0,0,0,0,0,0,0,0,0,0,0,0,0,0,0]
[null,"PCB Licence",null,"8. Transporting and storing Scheduled PCBs (storage >5T Environment Protection Licence, transporting/storage >1T PCB licence, transporting drums and containers >500kg Dangerous Goods licence)","WebGIS EL (PCB Register)",null,null,null,null,null,0,null,1,null,null,null,1,null,null,null,null,null,null,null,null,null,null,null,null,null,null,null,null,1,null,null,null,null,null,null,null,null,null,null,null,null,null,null,null,null,null,null,null,null,null,null,null,null,null,null,null,null,0,0,0,0,0,0,0,0,0,0,0,0,0,0,0,0,0,0,0,0,0,0,0,0,0,0,0,0,0,0,0,0,0,0]
[null,"Section 5.3",null,"9. Transporting >200kg of restricted, hazardous or liquid waste (licenced transporter - unless transporting back to the depot)",null,null,null,null,null,null,0,null,1,null,null,null,1,null,null,null,null,null,null,null,null,null,null,null,null,null,null,null,null,1,null,null,null,null,null,null,null,null,null,null,null,null,null,null,null,null,null,null,null,null,null,null,null,null,null,null,null,null,0,0,0,0,0,0,0,0,0,0,0,0,0,0,0,0,0,0,0,0,0,0,0,0,0,0,0,0,0,0,0,0,0,0]
[null,"S99",null,"10. Undertaking Hot Works during a Total Fire Ban (unless in accordance with a gazetted exemption - need to check TFB Order for the day)","RFS",null,null,null,null,null,0,null,1,null,null,null,1,null,null,null,null,null,null,null,null,null,null,null,null,null,null,null,null,1,null,null,null,null,null,null,null,null,null,null,null,null,null,null,null,null,null,null,null,null,null,null,null,null,null,null,null,null,0,0,0,0,0,0,0,0,0,0,0,0,0,0,0,0,0,0,0,0,0,0,0,0,0,0,0,0,0,0,0,0,0,0]
[null,null,null,"NOTE: Standard exemptions must be gazetted on the day of the TFB for them to take effect.",null,null,null,null,null,null,0,null,1,null,null,null,1,null,null,null,null,null,null,null,null,null,null,null,null,null,null,null,null,1,null,null,null,null,null,null,null,null,null,null,null,null,null,null,null,null,null,null,null,null,null,null,null,null,null,null,null,null,{"$f":"M172*M$17","v":0},{"$f":"N172*N$17","v":0},0,0,{"$f":"Q172*Q$17","v":0},0,0,0,0,0,0,0,0,0,0,0,0,0,0,0,0,0,0,0,0,0,0,0,0,0,0,0,0,0]
[null,"Section 8.2",null,"11. Using water outside of water saving rules use during water restriction periods",null,null,null,null,null,null,0,null,1,null,null,null,1,null,null,null,null,null,null,null,null,null,null,null,null,null,null,null,null,1,null,null,null,null,null,null,null,null,null,null,null,null,null,null,null,null,null,null,null,null,null,null,null,null,null,null,null,null,0,0,0,0,0,0,0,0,0,0,0,0,0,0,0,0,0,0,0,0,0,0,0,0,0,0,0,0,0,0,0,0,0,0]
[null,"Part 8.10",null,"12. Working with friable asbestos or > 10m2 of bonded asbestos (more)","WebGIS EL (asbestos register)",null,null,null,null,null,0,null,1,null,null,null,1,null,null,null,null,null,null,null,null,null,null,null,null,null,null,null,null,1,null,null,null,null,null,null,null,null,null,null,null,null,null,null,null,null,null,null,null,null,null,null,null,null,null,null,null,null,0,0,0,0,0,0,0,0,0,0,0,0,0,0,0,0,0,0,0,0,0,0,0,0,0,0,0,0,0,0,0,0,0,0]
[null,null,null,null,null,null,null,null,null,null,0,null,1,null,null,null,1,null,null,null,null,null,null,null,null,null,null,null,null,null,null,null,null,1,null,null,null,null,null,null,null,null,null,null,null,null,null,null,null,null,null,null,null,null,null,null,null,null,null,null,null,null,0,0,0,0,0,0,0,0,0,0,0,0,0,0,0,0,0,0,0,0,0,0,0,0,0,0,0,0,0,0,0,0,0,0]
[null,null,{"$f":"IF(ISBLANK(D176),\"                           If required add supporting comments here and add any specific instructions in STEP 17\",\"\")","v":"                           If required add supporting comments here and add any specific instructions in STEP 17"},null,null,null,null,null,null,null,0,null,1,null,null,null,1,null,null,null,null,null,null,null,null,null,null,null,null,null,null,null,null,null,null,null,null,null,null,null,null,null,null,null,null,null,null,null,null,null,null,null,null,null,null,null,null,null,null,null,null,null,0,0,0,0,0,0,0,0,0,0,0,0,0,0,0,0,0,0,0,0,0,0,0,0,0,0,0,0,0,0,0,0,0,0]
[null,null,null,null,null,null,null,null,null,null,0,null,1,null,null,null,1,null,null,null,null,null,null,null,null,null,null,null,null,null,null,null,null,1,null,null,null,null,null,null,null,null,null,null,null,null,null,null,null,null,null,null,null,null,null,null,null,null,null,null,null,null,0,0,0,0,0,0,0,0,0,0,0,0,0,0,0,0,0,0,0,0,0,0,0,0,0,0,0,0,0,0,0,0,0,0]
[null,null,null,null,null,null,null,null,null,null,0,null,null,null,null,null,1,null,null,null,null,null,null,null,null,null,null,null,null,null,null,null,null,null,null,null,null,null,null,null,null,null,null,null,null,null,null,null,null,null,null,null,null,null,null,null,null,null,null,null,null,null,0,0,0,0,0,0,0,0,0,0,0,0,0,0,0,0,0,0,0,0,0,0,0,0,0,0,0,0,0,0,0,0,0,0]
[null,"Notification and consultation requirements",null,null,null,null,null,null,null,null,0,null,null,null,null,null,null,null,null,null,null,null,null,null,null,null,null,null,null,null,null,null,null,null,null,null,null,null,null,null,null,null,null,null,null,null,null,null,null,null,null,null,null,null,null,null,null,null,null,null,null,null,0,0,0,0,0,0,0,0,0,0,0,0,0,0,0,0,0,0,0,0,0,0,0,0,0,0,0,0,0,0,0,0,0,0]
[null,"STEP 10. Do the works require 40 day council notification (ES Act)?",null,null,null,null,null,null,null,null,0,null,null,null,null,null,null,null,null,null,null,null,null,null,null,null,null,null,null,null,null,null,null,null,null,null,null,null,null,null,null,null,null,null,null,null,null,null,null,null,null,null,null,null,null,null,null,null,null,null,null,null,0,0,0,0,0,0,0,0,0,0,0,0,0,0,0,0,0,0,0,0,0,0,0,0,0,0,0,0,0,0,0,0,0,0]
[null,null,null,null,"FAQ",null,null,null,null,null,0,null,null,null,null,null,null,null,null,null,null,null,null,null,null,null,null,null,null,null,null,null,null,null,null,1,null,null,null,null,null,null,null,null,null,null,null,null,null,null,null,null,null,null,null,null,null,null,null,null,null,null,0,0,0,0,0,0,0,0,0,0,0,0,0,0,0,0,0,0,0,0,0,0,0,0,0,0,0,0,0,0,0,0,0,0]
[null,"S 45",null,"Answer 'n' if works are routine repairs, maintenance or emergency works (more)",null,null,null,null,null,null,0,null,null,null,null,null,null,null,null,null,null,null,null,null,null,null,null,null,null,null,null,null,null,null,null,1,null,null,null,null,null,null,null,null,null,null,null,null,null,null,null,null,null,null,null,null,null,null,null,null,null,null,0,0,0,0,0,0,0,0,0,0,0,0,0,0,0,0,0,0,0,0,0,0,0,0,0,0,0,0,0,0,0,0,0,0]
[null,null,null,null,null,null,null,null,null,null,0,null,null,null,null,null,null,null,null,null,null,null,null,null,null,null,null,null,null,null,null,null,null,null,null,1,null,null,null,null,null,null,null,null,null,null,null,null,null,null,null,null,null,null,null,null,null,null,null,null,null,null,0,0,0,0,0,0,0,0,0,0,0,0,0,0,0,0,0,0,0,0,0,0,0,0,0,0,0,0,0,0,0,0,0,0]
[null,null,null,null,null,null,null,null,null,null,0,null,null,null,null,null,null,null,null,null,null,null,null,null,null,null,null,null,null,null,null,null,null,null,null,1,null,null,null,null,null,null,null,null,null,null,null,null,null,null,null,null,null,null,null,null,null,null,null,null,null,null,0,0,0,0,0,0,0,0,0,0,0,0,0,0,0,0,0,0,0,0,0,0,0,0,0,0,0,0,0,0,0,0,0,0]
[null,null,null,null,null,null,null,null,null,null,0,null,null,null,null,null,null,null,null,null,null,null,null,null,null,null,null,null,null,null,null,null,null,null,null,null,null,null,null,null,null,null,null,null,null,null,null,null,null,null,null,null,null,null,null,null,null,null,null,null,null,null,{"$f":"M185*M$17","v":0},{"$f":"N185*N$17","v":0},0,0,0,0,0,0,0,0,0,0,0,0,0,0,0,0,0,0,0,0,0,0,0,0,0,0,0,0,0,0,0,0]
[null,"STEP 11. Do the works require prior notification to OEH (NPWS)?",null,null,null,null,null,null,null,null,0,null,null,null,null,null,null,null,null,null,null,null,null,null,null,null,null,null,null,null,null,null,null,null,null,null,null,null,null,null,null,null,null,null,null,null,null,null,null,null,null,null,null,null,null,null,null,null,null,null,null,null,0,0,0,0,0,0,0,0,0,0,0,0,0,0,0,0,0,0,0,0,0,0,0,0,0,0,0,0,0,0,0,0,0,0]
[null,null,null,null,null,null,null,null,null,null,0,null,null,null,null,null,null,null,null,null,null,null,null,null,null,null,null,null,null,null,null,null,null,null,null,null,null,1,null,null,null,null,null,null,null,null,null,null,null,null,null,null,null,null,null,null,null,null,null,null,null,null,0,0,0,0,0,0,0,0,0,0,0,0,0,0,0,0,0,0,0,0,0,0,0,0,0,0,0,0,0,0,0,0,0,0]
[null,"Div 3",null,"Answer 'y' if works are within in a National Park (including inspection and maintenance) (more)","WebGIS EL (National parks)",null,null,null,null,null,0,null,null,null,null,null,null,null,null,null,null,null,null,null,null,null,null,null,null,null,null,null,null,null,null,null,null,1,null,null,null,null,null,null,null,null,null,null,null,null,null,null,null,null,null,null,null,null,null,null,null,null,0,0,0,0,{"$f":"Q188*Q$17","v":0},0,0,0,0,0,0,0,0,0,0,0,0,0,0,0,0,0,0,0,0,0,0,0,0,0,0,0,0,0]
[null,null,null,null,"OEH Protocol",null,null,null,null,null,0,null,null,null,null,null,null,null,null,null,null,null,null,null,null,null,null,null,null,null,null,null,null,null,null,null,null,1,null,null,null,null,null,null,null,null,null,null,null,null,null,null,null,null,null,null,null,null,null,null,null,null,{"$f":"M189*M$17","v":0},{"$f":"N189*N$17","v":0},0,0,0,0,0,0,0,0,0,0,0,0,0,0,0,0,0,0,0,0,0,0,0,0,0,0,0,0,0,0,0,0]
[null,null,null,null,null,null,null,null,null,null,0,null,null,null,null,null,null,null,null,null,null,null,null,null,null,null,null,null,null,null,null,null,null,null,null,null,null,1,null,null,null,null,null,null,null,null,null,null,null,null,null,null,null,null,null,null,null,null,null,null,null,null,0,0,0,0,0,0,0,0,0,0,0,0,0,0,0,0,0,0,0,0,0,0,0,0,0,0,0,0,0,0,0,0,0,0]
[null,null,null,null,null,null,null,null,null,null,0,null,1,null,1,null,1,null,1,null,null,null,null,null,null,null,null,null,null,null,null,null,null,null,null,null,null,null,null,null,null,null,null,null,null,null,null,null,null,null,null,null,null,null,null,null,null,null,null,null,null,null,0,0,0,0,null,null,0,0,0,0,0,0,0,0,0,0,0,0,0,0,0,0,0,0,0,0,0,0,0,0,0,0,0,0]
[null,"STEP 12. Do the works require 21 day council notification (SEPP - Transport and Infrastructure)?",null,null,null,null,null,null,null,null,0,null,1,null,1,null,1,null,1,null,null,null,null,null,null,null,null,null,null,null,null,null,null,null,null,null,null,null,null,null,null,null,null,null,null,null,null,null,null,null,null,null,null,null,null,null,null,null,null,null,null,null,0,0,0,0,null,null,0,0,0,0,0,0,0,0,0,0,0,0,0,0,0,0,0,0,0,0,0,0,0,0,0,0,0,0]
[null,null,null,null,"FAQ",null,null,null,null,null,0,null,1,null,1,null,1,null,1,null,null,null,null,null,null,null,null,null,null,null,null,null,null,null,null,null,null,null,null,1,null,null,null,null,null,null,null,null,null,null,null,null,null,null,null,null,null,null,null,null,null,null,0,0,0,0,null,null,0,0,0,0,0,0,0,0,0,0,0,0,0,0,0,0,0,0,0,0,0,0,0,0,0,0,0,0]
[null,"STEPS 12 - 14. *** Not relevant because the works are Exempt Development***",null,null,null,null,null,null,null,null,{"$f":"IF(q_2=\"y\",0,1)","v":1},null,null,null,1,null,1,null,null,1,null,null,null,null,null,null,null,null,null,null,null,null,null,null,null,null,null,null,null,1,null,null,null,null,null,null,null,null,null,null,null,null,null,null,null,null,null,null,null,null,null,null,{"$f":"M194*M$17","v":0},{"$f":"N194*N$17","v":0},0,0,null,null,0,0,0,0,0,0,0,0,0,0,0,0,0,0,0,0,0,0,0,0,0,0,0,0,0,0,0,0]
[null,"Div 1",null,"Answer 'y' if ANY of the following apply: ",null,null,null,null,null,null,{"$f":"MAX(BK195:CR195)","v":0},null,1,null,1,null,1,null,1,null,null,null,null,null,null,null,null,null,null,null,null,null,null,null,null,null,null,null,null,1,null,null,null,null,null,null,null,null,null,null,null,null,null,null,null,null,null,null,null,null,null,null,0,0,0,0,null,null,0,0,0,0,0,0,0,0,0,0,0,0,0,0,0,0,0,0,0,0,0,0,0,0,0,0,0,0]
[null,null,null,"1. Works will have a substantial impact on stormwater management services provided by local council",null,null,null,null,null,null,0,null,1,null,1,null,1,null,1,null,null,null,null,null,null,null,null,null,null,null,null,null,null,null,null,null,null,null,null,1,null,null,null,null,null,null,null,null,null,null,null,null,null,null,null,null,null,null,null,null,null,null,0,0,0,0,null,null,0,0,0,0,0,0,0,0,0,0,0,0,0,0,0,0,0,0,0,0,0,0,0,0,0,0,0,0]
[null,null,null,"2. Works are likely to generate traffic to an extent that will strain the capacity of the road system ",null,null,null,null,null,null,0,null,1,null,1,null,1,null,1,null,null,null,null,null,null,null,null,null,null,null,null,null,null,null,null,null,null,null,null,1,null,null,null,null,null,null,null,null,null,null,null,null,null,null,null,null,null,null,null,null,null,null,0,0,0,0,null,null,0,{"$f":"T197*T$17","v":0},0,0,0,0,0,0,0,0,0,0,0,0,0,0,0,0,0,0,0,0,0,0,0,0,0,0]
[null,null,null,"3. Works involve connection to, and a substantial impact on, the capacity of a sewerage system ",null,null,null,null,null,null,0,null,1,null,1,null,1,null,1,null,null,null,null,null,null,null,null,null,null,null,null,null,null,null,null,null,null,null,null,1,null,null,null,null,null,null,null,null,null,null,null,null,null,null,null,null,null,null,null,null,null,null,0,0,{"$f":"O198*O$17","v":0},{"$f":"P198*P$17","v":0},null,null,{"$f":"S198*S$17","v":0},0,{"$f":"U198*U$17","v":0},{"$f":"V198*V$17","v":0},{"$f":"W198*W$17","v":0},{"$f":"X198*X$17","v":0},{"$f":"Y198*Y$17","v":0},{"$f":"Z198*Z$17","v":0},{"$f":"AA198*AA$17","v":0},{"$f":"AB198*AB$17","v":0},{"$f":"AC198*AC$17","v":0},{"$f":"AD198*AD$17","v":0},{"$f":"AE198*AE$17","v":0},{"$f":"AF198*AF$17","v":0},{"$f":"AG198*AG$17","v":0},{"$f":"AH198*AH$17","v":0},{"$f":"AI198*AI$17","v":0},{"$f":"AJ198*AJ$17","v":0},{"$f":"AK198*AK$17","v":0},{"$f":"AL198*AL$17","v":0},{"$f":"AM198*AM$17","v":0},{"$f":"AN198*AN$17","v":0},{"$f":"AO198*AO$17","v":0},{"$f":"AP198*AP$17","v":0},{"$f":"AQ198*AQ$17","v":0},{"$f":"AR198*AR$17","v":0},{"$f":"AS198*AS$17","v":0},{"$f":"AT198*AT$17","v":0}]
[null,null,null,"4.  Works involve connection to, and use of a substantial volume of water from, any part of a water supply system owned by a council ",null,null,null,null,null,null,0,null,1,null,1,null,1,null,1,null,null,null,null,null,null,null,null,null,null,null,null,null,null,null,null,null,null,null,null,1,null,null,null,null,null,null,null,null,null,null,null,null,null,null,null,null,null,null,null,null,null,null,0,0,0,0,null,null,0,0,0,0,0,0,0,0,0,0,0,0,0,0,0,0,0,0,0,0,0,0,0,0,0,0,0,0]
[null,null,null,"5. Works involve the installation of a temporary structure that is likely to cause disruption to pedestrian or vehicular traffic that is not minor or inconsequential",null,null,null,null,null,null,0,null,1,null,1,null,1,null,1,null,null,null,null,null,null,null,null,null,null,null,null,null,null,null,null,null,null,null,null,1,null,null,null,null,null,null,null,null,null,null,null,null,null,null,null,null,null,null,null,null,null,null,0,0,0,0,null,null,0,0,0,0,0,0,0,0,0,0,0,0,0,0,0,0,0,0,0,0,0,0,0,0,0,0,0,0]
[null,null,null,"6. Works involve excavation that is not minor or inconsequential of the surface of, or a footpath adjacent to, a road for which a local council is the roads authority (more)",null,null,null,null,null,null,0,null,1,null,1,null,1,null,1,null,null,null,null,null,null,null,null,null,null,null,null,null,null,null,null,null,null,null,null,1,null,null,null,null,null,null,null,null,null,null,null,null,null,null,null,null,null,null,null,null,null,null,0,0,0,0,null,null,0,0,0,0,0,0,0,0,0,0,0,0,0,0,0,0,0,0,0,0,0,0,0,0,0,0,0,0]
[null,null,null,"7. Works is likely to affect the heritage significance of a local heritage item, or of a heritage conservation area, that is not also a State heritage item in a way that is more than minor or inconsequential (more)","WebGIS EL (Non Aboriginal heritage)",null,null,null,null,null,0,null,1,null,1,null,1,null,1,null,null,null,null,null,null,null,null,null,null,null,null,null,null,null,null,null,null,null,null,1,null,null,null,null,null,null,null,null,null,null,null,null,null,null,null,null,null,null,null,null,null,null,0,0,0,0,null,null,0,0,0,0,0,0,0,0,0,0,0,0,0,0,0,0,0,0,0,0,0,0,0,0,0,0,0,0]
[null,"Cl 2.45",null,"8. Works for the purpose of an existing or new substation (more)",null,null,null,null,null,null,0,null,1,null,1,null,1,null,1,null,null,null,null,null,null,null,null,null,null,null,null,null,null,null,null,null,null,null,null,1,null,null,null,null,null,null,null,null,null,null,null,null,null,null,null,null,null,null,null,null,null,null,0,0,0,0,null,null,0,0,0,0,0,0,0,0,0,0,0,0,0,0,0,0,0,0,0,0,0,0,0,0,0,0,0,0]
[null,null,null,null,null,null,null,null,null,null,0,null,1,null,1,null,1,null,1,null,null,null,null,null,null,null,null,null,null,null,null,null,null,null,null,null,null,null,null,1,null,null,null,null,null,null,null,null,null,null,null,null,null,null,null,null,null,null,null,null,null,null,0,0,0,0,null,null,0,0,0,0,0,0,0,0,0,0,0,0,0,0,0,0,0,0,0,0,0,0,0,0,0,0,0,0]
[null,null,{"$f":"IF(ISBLANK(D205),\"                                 If required add supporting comments here and any specific instructions in STEP 17\",\"\")","v":"                                 If required add supporting comments here and any specific instructions in STEP 17"},null,null,null,null,null,null,null,0,null,1,null,1,null,1,null,1,null,null,null,null,null,null,null,null,null,null,null,null,null,null,null,null,null,null,null,null,null,null,null,null,null,null,null,null,null,null,null,null,null,null,null,null,null,null,null,null,null,null,null,0,0,0,0,null,null,0,0,0,0,0,0,0,0,0,0,0,0,0,0,0,0,0,0,0,0,0,0,0,0,0,0,0,0]
[null,null,null,null,null,null,null,null,null,null,0,null,1,null,1,null,1,null,1,null,null,null,null,null,null,null,null,null,null,null,null,null,null,null,null,null,null,null,null,1,null,null,null,null,null,null,null,null,null,null,null,null,null,null,null,null,null,null,null,null,null,null,0,0,0,0,null,null,0,0,0,0,0,0,0,0,0,0,0,0,0,0,0,0,0,0,0,0,0,0,0,0,0,0,0,0]
[null,null,null,null,null,null,null,null,null,null,{"$f":"IF(q_2=\"y\",0,1)","v":1},null,1,null,1,null,1,null,1,null,null,null,null,null,null,null,null,null,null,null,null,null,null,null,null,null,null,null,null,1,null,null,null,null,null,null,null,null,null,null,null,null,null,null,null,null,null,null,null,null,null,null,0,0,0,0,null,null,0,0,0,0,0,0,0,0,0,0,0,0,0,0,0,0,0,0,0,0,0,0,0,0,0,0,0,0]
[null,null,null,null,null,null,null,null,null,null,0,null,1,null,1,null,1,null,1,null,null,null,null,null,null,null,null,null,null,null,null,null,null,null,null,null,null,null,null,null,null,null,null,null,null,null,null,null,null,null,null,null,null,null,null,null,null,null,null,null,null,null,0,0,0,0,null,null,0,0,0,0,0,0,0,0,0,0,0,0,0,0,0,0,0,0,0,0,0,0,0,0,0,0,0,0]
[null,"STEP 13. Do the works require 21 day authority notification (SEPP - Transport and Infrastructure)?",null,null,null,null,null,null,null,null,0,null,1,null,1,null,1,null,1,null,null,null,null,null,null,null,null,null,null,null,null,null,null,null,null,null,null,null,null,null,null,null,null,null,null,null,null,null,null,null,null,null,null,null,null,null,null,null,null,null,null,null,0,0,0,0,null,null,0,0,0,0,0,0,0,0,0,0,0,0,0,0,0,0,0,0,0,0,0,0,0,0,0,0,0,0]
[null,null,null,null,"FAQ",null,null,null,null,null,0,null,1,null,1,null,1,null,1,null,null,null,null,null,null,null,null,null,null,null,null,null,null,null,null,null,null,null,null,null,null,1,null,null,null,null,null,null,null,null,null,null,null,null,null,null,null,null,null,null,null,null,0,0,0,0,null,null,0,0,0,0,0,0,0,0,0,0,0,0,0,0,0,0,0,0,0,0,0,0,0,0,0,0,0,0]
[null,"Div 1",null,"Answer 'y' if ANY of the following apply: ",null,null,null,null,null,null,0,null,1,null,1,null,1,null,1,null,null,null,null,null,null,null,null,null,null,null,null,null,null,null,null,null,null,null,null,null,null,1,null,null,null,null,null,null,null,null,null,null,null,null,null,null,null,null,null,null,null,null,0,0,0,0,null,null,0,0,0,0,0,0,0,0,0,0,0,0,0,0,0,0,0,0,0,0,0,0,0,0,0,0,0,0]
[null,null,null,"1. Works will be on flood liable land and change flood patterns other than to a minor extent  (Council) (more)","WebGIS EL (Flood prone land)",null,null,null,null,null,0,null,1,null,1,null,1,null,1,null,null,null,null,null,null,null,null,null,null,null,null,null,null,null,null,null,null,null,null,null,null,1,null,null,null,null,null,null,null,null,null,null,null,null,null,null,null,null,null,null,null,null,0,0,0,0,null,null,0,0,0,0,0,0,0,0,0,0,0,0,0,0,0,0,0,0,0,0,0,0,0,0,0,0,0,0]
[null,null,null,"2. Works will be within a coastal vulnerability area (Council) ",null,null,null,null,null,null,0,null,1,null,1,null,1,null,1,null,null,null,null,null,null,null,null,null,null,null,null,null,null,null,null,null,null,null,null,null,null,1,null,null,null,null,null,null,null,null,null,null,null,null,null,null,null,null,null,null,null,null,{"$f":"M213*M$17","v":0},{"$f":"N213*N$17","v":0},0,0,null,null,0,0,0,0,0,0,0,0,0,0,0,0,0,0,0,0,0,0,0,0,0,0,0,0,0,0,0,0]
[null,null,null,"3. Works are adjacent to land reserved under the National Parks and Wildlife Act 1974 or to land acquired under Part 11 of that Act (Office of Environment and Heritage) (more)","WebGIS EL (NPs/conservation areas)",null,null,null,null,null,0,null,1,null,1,null,1,null,1,null,null,null,null,null,null,null,null,null,null,null,null,null,null,null,null,null,null,null,null,null,null,1,null,null,null,null,null,null,null,null,null,null,null,null,null,null,null,null,null,null,null,null,0,0,0,0,null,null,0,0,0,0,0,0,0,0,0,0,0,0,0,0,0,0,0,0,0,0,0,0,0,0,0,0,0,0]
[null,null,null,"4. Works are in Zone E1 National Parks and Nature Reserves or in a land use zone that is equivalent to that zone (Office of Environment and Heritage),","WebGIS EL (NPs/reserves)",null,null,null,null,null,0,null,1,null,1,null,1,null,1,null,null,null,null,null,null,null,null,null,null,null,null,null,null,null,null,null,null,null,null,null,null,1,null,null,null,null,null,null,null,null,null,null,null,null,null,null,null,null,null,null,null,null,0,0,0,0,null,null,0,0,0,0,0,0,0,0,0,0,0,0,0,0,0,0,0,0,0,0,0,0,0,0,0,0,0,0]
[null,null,null,"5. Works involve a fixed or floating structure in or over navigable waters (TfNSW)",null,null,null,null,null,null,0,null,1,null,1,null,1,null,1,null,null,null,null,null,null,null,null,null,null,null,null,null,null,null,null,null,null,null,null,null,null,1,null,null,null,null,null,null,null,null,null,null,null,null,null,null,null,null,null,null,null,null,0,0,0,0,null,null,0,0,0,0,0,0,0,0,0,0,0,0,0,0,0,0,0,0,0,0,0,0,0,0,0,0,0,0]
[null,null,null,"6. Works are on land in a mine subsidence district within the meaning of the Mine Subsidence Compensation Act 1961 (Subsidence Advisory NSW) (see also Step 9) (more)","WebGIS EL (subsidence areas)",null,null,null,null,null,0,null,1,null,1,null,1,null,1,null,null,null,null,null,null,null,null,null,null,null,null,null,null,null,null,null,null,null,null,null,null,1,null,null,null,null,null,null,null,null,null,null,null,null,null,null,null,null,null,null,null,null,{"$f":"M217*M$17","v":0},{"$f":"N217*N$17","v":0},0,0,null,null,0,0,0,0,0,0,0,0,0,0,0,0,0,0,0,0,0,0,0,0,0,0,0,0,0,0,0,0]
[null,null,null,null,null,null,null,null,null,null,0,null,1,null,1,null,1,null,1,null,null,null,null,null,null,null,null,null,null,null,null,null,null,null,null,null,null,null,null,null,null,1,null,null,null,null,null,null,null,null,null,null,null,null,null,null,null,null,null,null,null,null,0,0,0,0,null,null,0,0,0,0,0,0,0,0,0,0,0,0,0,0,0,0,0,0,0,0,0,0,0,0,0,0,0,0]
[null,null,{"$f":"IF(ISBLANK(D219),\"                                 If required add supporting comments here and any specific instructions in STEP 17\",\"\")","v":"                                 If required add supporting comments here and any specific instructions in STEP 17"},null,null,null,null,null,null,null,0,null,1,null,1,null,1,null,1,null,null,null,null,null,null,null,null,null,null,null,null,null,null,null,null,null,null,null,null,null,null,null,null,null,null,null,null,null,null,null,null,null,null,null,null,null,null,null,null,null,null,null,0,0,0,0,null,null,0,0,0,0,0,0,0,0,0,0,0,0,0,0,0,0,0,0,0,0,0,0,0,0,0,0,0,0]
[null,null,null,null,null,null,null,null,null,null,0,null,1,null,1,null,1,null,1,null,null,null,null,null,null,null,null,null,null,null,null,null,null,null,null,null,null,null,null,null,null,1,null,null,null,null,null,null,null,null,null,null,null,null,null,null,null,null,null,null,null,null,0,0,0,0,null,null,0,0,0,0,0,0,0,0,0,0,0,0,0,0,0,0,0,0,0,0,0,0,0,0,0,0,0,0]
[null,null,null,null,null,null,null,null,null,null,0,null,1,null,1,null,1,null,1,null,null,null,null,null,null,null,null,null,null,null,null,null,null,null,null,null,null,null,null,null,null,1,null,null,null,null,null,null,null,null,null,null,null,null,null,null,null,null,null,null,null,null,0,0,0,0,null,null,0,0,0,0,0,0,0,0,0,0,0,0,0,0,0,0,0,0,0,0,0,0,0,0,0,0,0,0]
[null,null,null,null,null,null,null,null,null,null,0,null,1,null,1,null,1,null,1,null,null,null,null,null,null,null,null,null,null,null,null,null,null,null,null,null,null,null,null,null,null,null,null,null,null,null,null,null,null,null,null,null,null,null,null,null,null,null,null,null,null,null,0,0,0,0,null,null,0,0,0,0,0,0,0,0,0,0,0,0,0,0,0,0,0,0,0,0,0,0,0,0,0,0,0,0]
[null,"STEP 14. Do works require 21 notification to adjoining occupiers (SEPP - Transport and Infrastructure)?",null,null,null,null,null,null,null,null,0,null,1,null,1,null,1,null,1,null,null,null,null,null,null,null,null,null,null,null,null,null,null,null,null,null,null,null,null,null,null,null,null,null,null,null,null,null,null,null,null,null,null,null,null,null,null,null,null,null,null,null,0,0,0,0,null,null,0,0,0,0,0,0,0,0,0,0,0,0,0,0,0,0,0,0,0,0,0,0,0,0,0,0,0,0]
[null,null,null,null,"FAQ",null,null,null,null,null,0,null,1,null,1,null,1,null,1,null,null,null,null,null,null,null,null,null,null,null,null,null,null,null,null,null,null,null,null,null,null,null,null,1,null,null,null,null,null,null,null,null,null,null,null,null,null,null,null,null,null,null,0,0,0,0,null,null,0,0,0,0,0,0,0,0,0,0,0,0,0,0,0,0,0,0,0,0,0,0,0,0,0,0,0,0]
[null,"Cl 2.45",null,"Answer 'y' if works for the purpose of an existing or new substation (more)",null,null,null,null,null,null,{"$f":"MAX(BK225:CR225)","v":0},null,1,null,1,null,1,null,1,null,null,null,null,null,null,null,null,null,null,null,null,null,null,null,null,null,null,null,null,null,null,null,null,1,null,null,null,null,null,null,null,null,null,null,null,null,null,null,null,null,null,null,0,0,0,0,null,null,0,0,0,0,0,0,0,0,0,0,0,0,0,0,0,0,0,0,0,0,0,0,0,0,0,0,0,0]
[null,null,null,null,null,null,null,null,null,null,0,null,1,null,1,null,1,null,1,null,null,null,null,null,null,null,null,null,null,null,null,null,null,null,null,null,null,null,null,null,null,null,null,null,null,null,null,null,null,null,null,null,null,null,null,null,null,null,null,null,null,null,0,0,0,0,null,null,0,0,0,0,0,0,0,0,0,0,0,0,0,0,0,0,0,0,0,0,0,0,0,0,0,0,0,0]
[null,null,null,null,null,null,null,null,null,null,0,null,1,null,1,null,1,null,1,null,null,null,null,null,null,null,null,null,null,null,null,null,null,null,null,null,null,null,null,null,null,null,null,1,null,null,null,null,null,null,null,null,null,null,null,null,null,null,null,null,null,null,0,0,0,0,null,null,0,{"$f":"T227*T$17","v":0},0,0,0,0,0,0,0,0,0,0,0,0,0,0,0,0,0,0,0,0,0,0,0,0,0,0]
[null,null,null,null,null,null,null,null,null,null,0,null,null,null,null,null,null,null,null,null,null,null,null,null,null,null,null,null,null,null,null,null,null,null,null,null,null,null,null,null,null,null,null,1,null,null,null,null,null,null,null,null,null,null,null,null,null,null,null,null,null,null,0,0,{"$f":"O228*O$17","v":0},{"$f":"P228*P$17","v":0},{"$f":"Q228*Q$17","v":0},0,{"$f":"S228*S$17","v":0},0,{"$f":"U228*U$17","v":0},{"$f":"V228*V$17","v":0},{"$f":"W228*W$17","v":0},{"$f":"X228*X$17","v":0},{"$f":"Y228*Y$17","v":0},{"$f":"Z228*Z$17","v":0},{"$f":"AA228*AA$17","v":0},{"$f":"AB228*AB$17","v":0},{"$f":"AC228*AC$17","v":0},{"$f":"AD228*AD$17","v":0},{"$f":"AE228*AE$17","v":0},{"$f":"AF228*AF$17","v":0},{"$f":"AG228*AG$17","v":0},{"$f":"AH228*AH$17","v":0},{"$f":"AI228*AI$17","v":0},{"$f":"AJ228*AJ$17","v":0},{"$f":"AK228*AK$17","v":0},{"$f":"AL228*AL$17","v":0},{"$f":"AM228*AM$17","v":0},{"$f":"AN228*AN$17","v":0},{"$f":"AO228*AO$17","v":0},{"$f":"AP228*AP$17","v":0},{"$f":"AQ228*AQ$17","v":0},{"$f":"AR228*AR$17","v":0},{"$f":"AS228*AS$17","v":0},{"$f":"AT228*AT$17","v":0}]
[null,"STEP 15. Could the works require other notifications?",null,null,null,null,null,null,null,null,0,null,null,null,null,null,null,null,null,null,null,null,null,null,null,null,null,null,null,null,null,null,null,null,null,null,null,null,null,null,null,null,null,null,null,null,null,null,null,null,null,null,null,null,null,null,null,null,null,null,null,null,0,0,0,0,0,0,0,0,0,0,0,0,0,0,0,0,0,0,0,0,0,0,0,0,0,0,0,0,0,0,0,0,0,0]
[null,null,null,null,null,null,null,null,null,null,0,null,null,null,null,null,null,null,null,null,null,null,null,null,null,null,null,null,null,null,null,null,null,null,null,null,null,null,null,null,null,null,null,null,null,1,null,null,null,null,null,null,null,null,null,null,null,null,null,null,null,null,0,0,0,0,0,0,0,0,0,0,0,0,0,0,0,0,0,0,0,0,0,0,0,0,0,0,0,0,0,0,0,0,0,0]
[null,null,null,"Answer 'y' if ANY of the following apply: ",null,null,null,null,null,null,0,null,null,null,null,null,null,null,null,null,null,null,null,null,null,null,null,null,null,null,null,null,null,null,null,null,null,null,null,null,null,null,null,null,null,1,null,null,null,null,null,null,null,null,null,null,null,null,null,null,null,null,0,0,0,0,0,0,0,0,0,0,0,0,0,0,0,0,0,0,0,0,0,0,0,0,0,0,0,0,0,0,0,0,0,0]
[null,"S 50",null,"1. Working within a Special Catchment Area declared in the Water NSW Act 2014 (Water NSW)","WebGIS EL (SCAs)",null,null,null,null,null,0,null,null,null,null,null,null,null,null,null,null,null,null,null,null,null,null,null,null,null,null,null,null,null,null,null,null,null,null,null,null,null,null,null,null,1,null,null,null,null,null,null,null,null,null,null,null,null,null,null,null,null,0,0,0,0,0,0,0,0,0,0,0,0,0,0,0,0,0,0,0,0,0,0,0,0,0,0,0,0,0,0,0,0,0,0]
[null,"S 55",null,"2. Working within a Special Catchment Area declared in the Hunter Water Act 1991 (Hunter Water Corporation) (more)","WebGIS EL (SCAs)",null,null,null,null,null,0,null,null,null,null,null,null,null,null,null,null,null,null,null,null,null,null,null,null,null,null,null,null,null,null,null,null,null,null,null,null,null,null,null,null,1,null,null,null,null,null,null,null,null,null,null,null,null,null,null,null,null,0,0,0,0,0,0,0,0,0,0,0,0,0,0,0,0,0,0,0,0,0,0,0,0,0,0,0,0,0,0,0,0,0,0]
[null,"Div 2",null,"3. Pesticide use (see Ausgrid's Pesticide Use Notification Plan)","Pesticides Notification Plan",null,null,null,null,null,0,null,null,null,null,null,null,null,null,null,null,null,null,null,null,null,null,null,null,null,null,null,null,null,null,null,null,null,null,null,null,null,null,null,null,1,null,null,null,null,null,null,null,null,null,null,null,null,null,null,null,null,{"$f":"M234*M$17","v":0},null,null,null,null,null,null,0,null,null,null,null,null,null,null,null,null,null,null,null,null,null,null,null,null,null,null,null,null,null,null,null,null,{"$f":"AT234*AT$17","v":0}]
[null,"Section 4.2",null,"4. Working outside of Standard Operating Hours (5 days notice required unless an emergency)",null,null,null,null,null,null,0,null,null,null,null,null,null,null,null,null,null,null,null,null,null,null,null,null,null,null,null,null,null,null,null,null,null,null,null,null,null,null,null,null,null,1,null,null,null,null,null,null,null,null,null,null,null,null,null,null,null,null,0,{"$f":"N235*N$17","v":0},{"$f":"O235*O$17","v":0},{"$f":"P235*P$17","v":0},{"$f":"Q235*Q$17","v":0},0,{"$f":"S235*S$17","v":0},0,{"$f":"U235*U$17","v":0},0,0,0,0,0,0,0,0,0,0,0,0,0,0,0,0,0,0,0,0,0,0,0,0,0]
[null,"Section 5.4",null,"5. Providing raw mulch or other recovered materials to third parties (provide documentation as required buy the RMP)",null,null,null,null,null,null,0,null,null,null,null,null,null,null,null,null,null,null,null,null,null,null,null,null,null,null,null,null,null,null,null,null,null,null,null,null,null,null,null,null,null,1,null,null,null,null,null,null,null,null,null,null,null,null,null,null,null,null,0,null,null,null,null,null,null,0,null,null,null,null,null,null,null,null,null,null,null,null,null,null,null,null,null,null,null,null,null,null,null,null,null,0]
[null,"S 170A",null,"6. Transferring or demolishing an item of Ausgrid's S170 Heritage Register","WebGIS EL (S170 register)",null,null,null,null,null,0,null,null,null,null,null,null,null,null,null,null,null,null,null,null,null,null,null,null,null,null,null,null,null,null,null,null,null,null,null,null,null,null,null,null,1,null,null,null,null,null,null,null,null,null,null,null,null,null,null,null,null,0,{"$f":"N237*N$17","v":0},{"$f":"O237*O$17","v":0},{"$f":"P237*P$17","v":0},{"$f":"Q237*Q$17","v":0},0,{"$f":"S237*S$17","v":0},0,{"$f":"U237*U$17","v":0},{"$f":"V237*V$17","v":0},{"$f":"W237*W$17","v":0},{"$f":"X237*X$17","v":0},{"$f":"Y237*Y$17","v":0},{"$f":"Z237*Z$17","v":0},{"$f":"AA237*AA$17","v":0},{"$f":"AB237*AB$17","v":0},{"$f":"AC237*AC$17","v":0},{"$f":"AD237*AD$17","v":0},{"$f":"AE237*AE$17","v":0},{"$f":"AF237*AF$17","v":0},{"$f":"AG237*AG$17","v":0},{"$f":"AH237*AH$17","v":0},{"$f":"AI237*AI$17","v":0},{"$f":"AJ237*AJ$17","v":0},{"$f":"AK237*AK$17","v":0},{"$f":"AL237*AL$17","v":0},{"$f":"AM237*AM$17","v":0},{"$f":"AN237*AN$17","v":0},{"$f":"AO237*AO$17","v":0},{"$f":"AP237*AP$17","v":0},{"$f":"AQ237*AQ$17","v":0},{"$f":"AR237*AR$17","v":0},{"$f":"AS237*AS$17","v":0},0]
[null,"Section 4.2",null,"7. Noisy works affecting a receiver (4 clear business days notice required unless an emergency)",null,null,null,null,null,null,0,null,null,null,null,null,null,null,null,null,null,null,null,null,null,null,null,null,null,null,null,null,null,null,null,null,null,null,null,null,null,null,null,null,null,1,null,null,null,null,null,null,null,null,null,null,null,null,null,null,null,null,0,0,0,0,0,0,0,0,0,0,0,0,0,0,0,0,0,0,0,0,0,0,0,0,0,0,0,0,0,0,0,0,0,0]
[null,"Part 8.7",null,"8. Licenced asbestos removal work (must notify regulator, people in the vicinity etc.)and unlicenced asbestos removal work (notify people in the vicinity)","WebGIS EL (asbestos register)",null,null,null,null,null,0,null,null,null,null,null,null,null,null,null,null,null,null,null,null,null,null,null,null,null,null,null,null,null,null,null,null,null,null,null,null,null,null,null,null,1,null,null,null,null,null,null,null,null,null,null,null,null,null,null,null,null,0,0,0,0,0,0,0,0,0,0,0,0,0,0,0,0,0,0,0,0,0,0,0,0,0,0,0,0,0,0,0,0,0,0]
[null,"Cl79",null,"9. Transporting asbestos >100kg or 10m2 (must notify EPA)","WebGIS EL (asbestos register)",null,null,null,null,null,0,null,null,null,null,null,null,null,null,null,null,null,null,null,null,null,null,null,null,null,null,null,null,null,null,null,null,null,null,null,null,null,null,null,null,1,null,null,null,null,null,null,null,null,null,null,null,null,null,null,null,null,0,0,0,0,0,0,0,0,0,0,0,0,0,0,0,0,0,0,0,0,0,0,0,0,0,0,0,0,0,0,0,0,0,0]
[null,null,null,"10. Vegetation or noisy works within Powerful Owl breeding territory between 1 Apr - 31 Oct (must notify Birdlife Australia)","WebGIS EL (breeding sites)",null,null,null,null,null,0,null,null,null,null,null,null,null,null,null,null,null,null,null,null,null,null,null,null,null,null,null,null,null,null,null,null,null,null,null,null,null,null,null,null,1,null,null,null,null,null,null,null,null,null,null,null,null,null,null,null,null,0,0,0,0,0,0,0,0,0,0,0,0,0,0,0,0,0,0,0,0,0,0,0,0,0,0,0,0,0,0,0,0,0,0]
[null,"S99",null,"11. Undertaking hot works during a Total Fire Ban (must notify local RFS or Fire and Rescue) (more)","See Step 9 above",null,null,null,null,null,0,null,null,null,null,null,null,null,null,null,null,null,null,null,null,null,null,null,null,null,null,null,null,null,null,null,null,null,null,null,null,null,null,null,null,1,null,null,null,null,null,null,null,null,null,null,null,null,null,null,null,null,{"$f":"M242*M$17","v":0},{"$f":"N242*N$17","v":0},0,0,0,0,0,0,0,0,0,0,0,0,0,0,0,0,0,0,0,0,0,0,0,0,0,0,0,0,0,0,0,0]
[null,"S55",null,"12. Entering private property (prior notification to the land owner required with the day of entry unless consent has been granted, bushfire prevention, an emergency, easement, or public road/reserve) (more)",null,null,null,null,null,null,0,null,null,null,null,null,null,null,null,null,null,null,null,null,null,null,null,null,null,null,null,null,null,null,null,null,null,null,null,null,null,null,null,null,null,1,null,null,null,null,null,null,null,null,null,null,null,null,null,null,null,null,0,0,0,0,0,0,0,0,0,0,0,0,0,0,0,0,0,0,0,0,0,0,0,0,0,0,0,0,0,0,0,0,0,0]
[null,null,null,null,null,null,null,null,null,null,0,null,null,null,null,null,null,null,null,null,null,null,null,null,null,null,null,null,null,null,null,null,null,null,null,null,null,null,null,null,null,null,null,null,null,1,null,null,null,null,null,null,null,null,null,null,null,null,null,null,null,null,0,0,0,0,0,0,0,0,0,0,0,0,0,0,0,0,0,0,0,0,0,0,0,0,0,0,0,0,0,0,0,0,0,0]
[null,null,{"$f":"IF(ISBLANK(D245),\"                                 If required add supporting comments here and any specific instructions in STEP 17\",\"\")","v":"                                 If required add supporting comments here and any specific instructions in STEP 17"},null,null,null,null,null,null,null,0,null,null,null,null,null,null,null,null,null,null,null,null,null,null,null,null,null,null,null,null,null,null,null,null,null,null,null,null,null,null,null,null,null,null,null,null,null,null,null,null,null,null,null,null,null,null,null,null,null,null,null,0,0,0,0,0,0,0,0,0,0,0,0,0,0,0,0,0,0,0,0,0,0,0,0,0,0,0,0,0,0,0,0,0,0]
[null,null,null,null,null,null,null,null,null,null,0,null,null,null,null,null,null,null,null,null,null,null,null,null,null,null,null,null,null,null,null,null,null,null,null,null,null,null,null,null,null,null,null,null,null,1,null,null,null,null,null,null,null,null,null,null,null,null,null,null,null,null,0,0,0,0,0,0,0,0,0,0,0,0,0,0,0,0,0,0,0,0,0,0,0,0,0,0,0,0,0,0,0,0,0,0]
[null,null,null,null,null,null,null,null,null,null,0,null,null,null,null,null,null,null,null,null,null,null,null,null,null,null,null,null,null,null,null,null,null,null,null,null,null,null,null,null,null,null,null,null,null,null,null,null,null,null,null,null,null,null,null,null,null,null,null,null,null,null,0,0,0,0,0,0,0,0,0,0,0,0,0,0,0,0,0,0,0,0,0,0,0,0,0,0,0,0,0,0,0,0,0,0]
[null,"Compliance checklist",null,null,null,null,null,null,null,null,{"$f":"MAX(BK248:DQ248)","v":0},null,null,null,null,null,null,null,null,null,null,null,null,null,null,null,null,null,null,null,null,null,null,null,null,null,null,null,null,null,null,null,null,null,null,null,null,null,null,null,null,null,null,null,null,null,null,null,null,null,null,null,0,0,0,0,0,0,0,0,0,0,0,0,0,0,0,0,0,0,0,0,0,0,0,0,0,0,0,0,0,0,0,0,0,0]
[null,"STEP 16. Do you want to create a compliance checklist summarising key handbook controls?",null,null,null,null,null,null,null,"n",{"$f":"MAX(BK249:DQ249)","v":0}]
[null,"Useful for drawing attention to the key issues and checking compliance during construction",null,null,null,null,null,null,null,null,{"$f":"IF(q_16=\"n\",1,0)","v":1}]
[null,null,null,"Select all of the following which could apply to the works (a compliance checklist will appear at the bottom of the form) ",null,null,null,null,null,null,1]
[null,null,null,"\n\n1. Excavating, disturbing soil, concrete cutting or creating sediment?",null,null,null,null,null,false,1]
[null,null,null,"2. Managing accumulated water in substations, pits or trenches?",null,null,null,null,null,false,1]
[null,null,null,"3. Handling, storing, transporting or disposing of oils, fuels, chemicals?",null,null,null,null,null,false,1]
[null,null,null,"4. Disturbing asbestos contaminated materials or dust?",null,null,null,null,null,false,1]
[null,null,null,"5. Handling oil and equipment that contains PCBs?",null,null,null,null,null,false,1]
[null,null,null,"6. Using pesticides (including herbicides, insecticides, fungicides, etc)?",null,null,null,null,null,false,1]
[null,null,null,"7. Disturbing known or suspected lead products or dust?",null,null,null,null,null,false,1]
[null,null,null,"8. Handling mercury containing equipment?",null,null,null,null,null,false,1]
[null,null,null,"9. Generating fumes from vehicles or machinery, using SF6, or generating dust?",null,null,null,null,null,false,1]
[null,null,null,"10. Noisy works or works outside of standard operating hours?",null,null,null,null,null,false,1]
[null,null,null,"11. Works on known or suspected contaminated land?",null,"WebGIS EL (some areas)",null,null,null,false,1]
[null,null,null,"12. Works (including discharging water) in areas of known or suspected acid sulfate soils?",null,"WebGIS EL (ASS areas)",null,null,null,false,1]
[null,null,null,"13. Generating, handling, storing or transporting waste?",null,null,null,null,null,false,1]
[null,null,null,"14. Receiving or supplying VENM, ENM, recovered aggregates / fines, stormwater, or mulch",null,null,null,null,null,false,1]
[null,null,null,"15. Impacting vegetation or working within a Tree Protection Zone?",null,null,null,null,null,false,1]
[null,null,null,"16. Working in an area with known weeds or pathogens?",null,null,null,null,null,false,1]
[null,null,null,"17. Live works on bushfire prone land or hot works during a TFB?",null,null,null,null,null,false,1]
[null,null,null,"18. Working near Aboriginal heritage or on undisturbed land with the following features?\n– within 200m of waters, or\n– within a sand dune system, or\n– on a ridge top, ridge line or headland, or\n– within 200m below or above a cliff face, or\n– within 20m of or in a cave, rock shelter, or a cave mouth.",null,"WebGIS EL (Aboriginal)",null,null,null,false,1]
[null,null,null,"19. Working near an item of Non Aboriginal heritage?",null,"WebGIS EL (heritage)",null,null,null,false,1]
[null,null,null,"20. Using potable (drinkable) water for construction or washbays?",null,null,null,null,null,false,1]
[null,null,null,null,null,null,null,null,null,null,1]
[null,null,{"$f":"IF(ISBLANK(D273),\"                                 If required add supporting comments here and any specific instructions in STEP 17\",\"\")","v":"                                 If required add supporting comments here and any specific instructions in STEP 17"},null,null,null,null,null,null,null,1,null,null,null,null,null,null,null,null,null,null,null,null,null,null,null,null,null,null,null,null,null,null,null,null,null,null,null,null,null,null,null,null,null,null,null,null,1]
[null,null,null,null,null,null,null,null,null,null,{"$f":"MAX(BK274:DQ274)","v":0}]
[null,null,null,null,null,null,null,null,null,null,{"$f":"MAX(BK275:CR275)","v":0}]
[null,null,null,null,null,null,null,null,null,null,0,null,null,null,null,null,null,null,null,null,null,null,null,null,null,null,null,null,null,null,null,null,null,null,null,null,null,null,null,null,null,null,null,null,null,null,null,null,null,null,null,null,null,null,null,null,null,null,null,null,null,null,{"$f":"M276*M$17","v":0},{"$f":"N276*N$17","v":0},{"$f":"O276*O$17","v":0},{"$f":"P276*P$17","v":0},{"$f":"Q276*Q$17","v":0},{"$f":"R276*R$17","v":0},{"$f":"S276*S$17","v":0},{"$f":"T276*T$17","v":0},{"$f":"U276*U$17","v":0},{"$f":"V276*V$17","v":0},{"$f":"W276*W$17","v":0},{"$f":"X276*X$17","v":0},{"$f":"Y276*Y$17","v":0},{"$f":"Z276*Z$17","v":0},{"$f":"AA276*AA$17","v":0},{"$f":"AB276*AB$17","v":0},{"$f":"AC276*AC$17","v":0},{"$f":"AD276*AD$17","v":0},{"$f":"AE276*AE$17","v":0},{"$f":"AF276*AF$17","v":0},{"$f":"AG276*AG$17","v":0},{"$f":"AH276*AH$17","v":0},{"$f":"AI276*AI$17","v":0},{"$f":"AJ276*AJ$17","v":0},{"$f":"AK276*AK$17","v":0},{"$f":"AL276*AL$17","v":0},{"$f":"AM276*AM$17","v":0},{"$f":"AN276*AN$17","v":0},{"$f":"AO276*AO$17","v":0},{"$f":"AP276*AP$17","v":0},{"$f":"AQ276*AQ$17","v":0},{"$f":"AR276*AR$17","v":0},{"$f":"AS276*AS$17","v":0},{"$f":"AT276*AT$17","v":0}]
[null,"Summary of approval notification requirements",null,null,null,null,null,null,null,null,0,null,null,null,null,null,null,null,null,null,null,null,null,null,null,null,null,null,null,null,null,null,null,null,null,null,null,null,null,null,null,null,null,null,null,null,null,null,null,null,null,null,null,null,null,null,null,null,null,null,null,null,0,0,0,0,0,0,0,0,0,0,0,0,0,0,0,0,0,0,0,0,0,0,0,0,0,0,0,0,0,0,0,0,0,0]
[null,null,null,null,null,null,null,null,null,null,0,null,null,null,null,null,null,null,null,null,null,null,null,null,null,null,null,null,null,null,null,null,null,null,null,null,null,null,null,null,null,null,null,null,null,null,null,null,null,null,null,null,null,null,null,null,null,null,null,null,null,null,0,0,0,0,0,0,0,0,0,0,0,0,0,0,0,0,0,0,0,0,0,0,0,0,0,0,0,0,0,0,0,0,0,0]
[null,null,null,"Environmental planning approval process - Steps 1-3",null,null,null,null,null,null,0,null,null,null,null,null,null,null,null,null,null,null,null,null,null,null,null,null,null,null,null,null,null,null,null,null,null,null,null,null,null,null,null,null,null,null,null,null,null,null,null,null,null,null,null,null,null,null,null,null,null,null,0,0,0,0,0,0,0,0,0,0,0,0,0,0,0,0,0,0,0,0,0,0,0,0,0,0,0,0,0,0,0,0,0,0]
[null,null,null,"Works can proceed in accordance with the planning approval if they are consistent with the scope of the SER, REF or DA, comply with all the conditions and all relevant permits and approvals are in place.\n\nWhen relying on a third party approval ensure one of the following:\n\n1. get written confirmation from the consent/determining authority that the scope is covered and the electricity works have been adequately assessed.　\n2. get written confirmation from the developer that that the scope is covered and the electricity works have been adequately assessed.\n\nNOTE for SERs: Confirm you have the latest version, that the scope of works are covered in the SER (Table 1) and review the specific construction controls SER (Table 2).\n\nNOTE for REFs: Confirm you have the latest version, that the scope of works are covered and review the project specific controls. REFs typically require a project specific Construction Environmental Management Plan (CEMP) and site inductions.",null,null,null,null,null,null,0,null,null,1,null,1,null,1,1,1,1,1,null,null,null,null,null,null,null,null,null,null,null,null,null,null,null,null,null,null,null,null,null,null,null,null,null,null,null,null,null,null,null,null,null,null,null,null,null,null,null,null,{"$f":"M280*M$17","v":0},{"$f":"N280*N$17","v":0},{"$f":"O280*O$17","v":0},0,null,null,0,0,0,0,0,0,0,0,0,0,0,0,0,0,0,0,0,0,0,0,0,0,0,0,0,0,0,0]
[null,null,null,"Specific planning approval is not required as the works are covered by the Telecommunications (Low‑impact Facilities) Determination. However, all works must be undertaken in accordance with the Environmental Handbook. Approval and notification requirements may apply (see below).\n\nNote: for a facility to be considered low impact it must be:\n\n1. Described in the Schedule to the Determination\n2. Be in specified areas, as per the Schedule to the Determination \n3. NOT be any of the following:\n- designated overhead lines\n- a tower that is not attached to a building\n- a tower attached to a building and more than 5 metres high\n- an extension to a tower that has previously been extended\n- an extension to a tower, if the extension is more than 5 metres high\n4. NOT be in an area of environmental significance (eg areas set aside for nature conservation, heritage conservation etc.)\n\nNOTE: If the scope of works changes be sure to revisit this Environmental Planning Calculator to see if an alternative planning approval process applies.",null,"Determination",null,null,null,null,0,null,1,null,null,1,null,1,null,null,null,null,null,null,null,null,null,null,null,null,null,null,null,null,null,null,null,null,null,null,null,null,null,null,null,null,null,null,null,null,null,null,null,null,null,null,null,null,null,null,null,null,{"$f":"M281*M$17","v":0},{"$f":"N281*N$17","v":0},{"$f":"O281*O$17","v":0},{"$f":"P281*P$17","v":0},{"$f":"Q281*Q$17","v":0},{"$f":"R281*R$17","v":0},{"$f":"S281*S$17","v":0},{"$f":"T281*T$17","v":0},{"$f":"U281*U$17","v":0},{"$f":"V281*V$17","v":0},{"$f":"W281*W$17","v":0},{"$f":"X281*X$17","v":0},{"$f":"Y281*Y$17","v":0},{"$f":"Z281*Z$17","v":0},{"$f":"AA281*AA$17","v":0},{"$f":"AB281*AB$17","v":0},{"$f":"AC281*AC$17","v":0},{"$f":"AD281*AD$17","v":0},{"$f":"AE281*AE$17","v":0},{"$f":"AF281*AF$17","v":0},{"$f":"AG281*AG$17","v":0},{"$f":"AH281*AH$17","v":0},{"$f":"AI281*AI$17","v":0},{"$f":"AJ281*AJ$17","v":0},{"$f":"AK281*AK$17","v":0},{"$f":"AL281*AL$17","v":0},{"$f":"AM281*AM$17","v":0},{"$f":"AN281*AN$17","v":0},{"$f":"AO281*AO$17","v":0},{"$f":"AP281*AP$17","v":0},{"$f":"AQ281*AQ$17","v":0},{"$f":"AR281*AR$17","v":0},{"$f":"AS281*AS$17","v":0},{"$f":"AT281*AT$17","v":0}]
[null,null,null,"Works are 'exempt development' and can proceed without a DA, SER, REF or EIS. However, all works must be undertaken in accordance with the Environmental Handbook. Approval and notification requirements may apply (see below).\n\nNOTE: Despite works may be exempt, Ausgrid should aim to minimise community impacts (eg visual, access, noise), reduce waste, and protect habitats whenever possible.\n\nNOTE: If the scope of works changes be sure to revisit this Environmental Planning Calculator to see if an alternative planning approval process applies.",null,"Environmental Handbook",null,null,null,null,0,null,1,null,1,null,1,null,null,1,null,1,null,null,null,null,null,null,null,null,null,null,null,null,null,null,null,null,null,null,null,null,null,null,null,null,null,null,null,null,null,null,null,null,null,null,null,null,null,null,null,null,0,0,0,0,null,null,0,0,0,0,0,0,0,0,0,0,0,0,0,0,0,0,0,0,0,0,0,0,0,0,0,0,0,0]
[null,null,null,"Works require the preparation of a Part 5 assessment/approval.\n- Summary Environmental Report (SER) - minor with no extensive/complex impacts \n- Review of Environmental Factors (REF) - major or extensive/complex impacts\n- Environmental Impact Statement (EIS) - likely to significantly affect the environment\n\nNOTE: SERs must be prepared in accordance with NS 174B EIA Guidelines. Contact Environmental Services if an REF/EIS could be required.",null,"[SER]",null,null,null,null,0,null,1,null,1,null,1,null,1,null,null,1,null,null,null,null,null,null,null,null,null,null,null,null,null,null,null,null,null,null,null,null,null,null,null,null,null,null,null,null,null,null,null,null,null,null,null,null,null,null,null,null,0,0,0,0,null,null,0,0,0,0,0,0,0,0,0,0,0,0,0,0,0,0,0,0,0,0,0,0,0,0,0,0,0,0]
[null,null,null,"Works are likely to require a Development Application to be submitted to and approved by local council. Contact Environmental Services.",null,null,null,null,null,null,0,null,1,null,null,null,1,null,1,null,1,null,null,null,null,null,null,null,null,null,null,null,null,null,null,null,null,null,null,null,null,null,null,null,null,null,null,null,null,null,null,null,null,null,null,null,null,null,null,null,null,null,0,0,0,0,{"$f":"Q284*Q$17","v":0},{"$f":"R284*R$17","v":0},0,0,0,0,0,0,0,0,0,0,0,0,0,0,0,0,0,0,0,0,0,0,0,0,0,0,0,0]
[null,null,null,"Other environmental approvals, permits or licences - Steps 4-9",null,null,null,null,null,null,0,null,null,null,null,null,null,null,null,null,null,null,null,null,null,null,null,null,null,null,null,null,null,null,null,null,null,null,null,null,null,null,null,null,null,null,null,null,null,null,null,null,null,null,null,null,null,null,null,null,null,null,0,0,0,0,{"$f":"Q285*Q$17","v":0},{"$f":"R285*R$17","v":0},0,0,0,0,0,0,0,0,0,0,0,0,0,0,0,0,0,0,0,0,0,0,0,0,0,0,0,0]
[null,null,null,"Refer to the environmental planning approval documentation (eg SER, REF or DA)",null,null,null,null,null,null,0,null,null,1,null,1,null,1,null,null,null,null,null,null,null,null,null,null,null,null,null,null,null,null,null,null,null,null,null,null,null,null,null,null,null,null,null,null,null,null,null,null,null,null,null,null,null,null,null,null,null,null,0,0,0,0,null,null,0,0,0,0,0,0,0,0,0,0,0,0,0,0,0,0,0,0,0,0,0,0,0,0,0,0,0,0]
[null,null,null,"Contact Environmental Services. An Aboriginal cultural heritage due diligence assessment and/or AHIP may be required.",null,null,null,null,null,null,{"$f":"IF(OR(AND(q_41=\"n\",q_42=\"n\"),AND(q_43=\"n\",q_44=\"n\"),M287=1),1,0)","v":1},null,1,null,1,null,1,null,null,1,1,null,null,1,null,null,null,null,null,null,null,null,null,null,null,null,null,null,null,null,null,null,null,null,null,null,null,null,null,null,null,null,null,null,null,null,null,null,null,null,null,null,0,0,0,0,null,null,0,0,0,0,0,0,0,0,0,0,0,0,0,0,0,0,0,0,0,0,0,0,0,0,0,0,0,0]
[null,null,null,"Contact Environmental Services. Works may require a specialist ecological assessment, permit and/or approval.",null,null,null,null,null,null,{"$f":"MAX(BK288:CR288)","v":0},null,1,null,1,null,1,null,null,null,null,1,null,null,null,1,null,null,null,null,null,null,null,null,null,null,null,null,null,null,null,null,null,null,null,null,null,null,null,null,null,null,null,null,null,null,null,null,null,null,null,null,0,{"$f":"N288*N$17","v":0},0,0,null,null,{"$f":"S288*S$17","v":0},{"$f":"T288*T$17","v":0},{"$f":"U288*U$17","v":0},{"$f":"V288*V$17","v":0},{"$f":"W288*W$17","v":0},{"$f":"X288*X$17","v":0},{"$f":"Y288*Y$17","v":0},{"$f":"Z288*Z$17","v":0},{"$f":"AA288*AA$17","v":0},{"$f":"AB288*AB$17","v":0},{"$f":"AC288*AC$17","v":0},{"$f":"AD288*AD$17","v":0},{"$f":"AE288*AE$17","v":0},{"$f":"AF288*AF$17","v":0},{"$f":"AG288*AG$17","v":0},{"$f":"AH288*AH$17","v":0},{"$f":"AI288*AI$17","v":0},{"$f":"AJ288*AJ$17","v":0},{"$f":"AK288*AK$17","v":0},{"$f":"AL288*AL$17","v":0},{"$f":"AM288*AM$17","v":0},{"$f":"AN288*AN$17","v":0},{"$f":"AO288*AO$17","v":0},{"$f":"AP288*AP$17","v":0},{"$f":"AQ288*AQ$17","v":0},{"$f":"AR288*AR$17","v":0},{"$f":"AS288*AS$17","v":0},{"$f":"AT288*AT$17","v":0}]
[null,null,null,"Contact Environmental Services. Works may require Commonwealth approval.",null,null,null,null,null,null,0,null,1,null,1,null,1,null,null,null,null,1,null,null,null,null,null,1,null,null,null,null,null,null,null,null,null,null,null,null,null,null,null,null,null,null,null,null,null,null,null,null,null,null,null,null,null,null,null,null,null,null,0,0,0,0,null,null,0,0,0,0,0,0,0,0,0,0,0,0,0,0,0,0,0,0,0,0,0,0,0,0,0,0,0,0]
[null,null,null,"Contact Environmental Services. Works may require a heritage approval or notification.",null,null,null,null,null,null,0,null,1,null,1,null,1,null,null,null,null,1,null,null,null,null,null,null,null,1,null,null,null,null,null,null,null,null,null,null,null,null,null,null,null,null,null,null,null,null,null,null,null,null,null,null,null,null,null,null,null,null,0,0,0,0,null,null,0,0,0,0,0,0,0,0,0,0,0,0,0,0,0,0,0,0,0,0,0,0,0,0,0,0,0,0]
[null,null,null,"Contact Property. Easement and Native Title issues may apply.",null,null,null,null,null,null,0,null,1,null,1,null,1,null,null,null,null,1,null,null,null,null,null,null,null,null,null,1,null,null,null,null,null,null,null,null,null,null,null,null,null,null,null,null,null,null,null,null,null,null,null,null,null,null,null,null,null,null,0,0,0,0,null,null,0,0,0,0,0,0,0,0,0,0,0,0,0,0,0,0,0,0,0,0,0,0,0,0,0,0,0,0]
[null,null,null,"Works may require a project specific approval (see Step 9)",null,null,null,null,null,null,0,null,1,null,1,null,1,null,null,null,null,1,null,null,null,null,null,null,null,null,null,null,null,1,null,null,null,null,null,null,null,null,null,null,null,null,null,null,null,null,null,null,null,null,null,null,null,null,null,null,null,null,0,0,0,0,null,null,0,0,0,0,0,0,0,0,0,0,0,0,0,0,0,0,0,0,0,0,0,0,0,0,0,0,0,0]
[null,null,null,"Contact Environmental Services. Further assessment is required.",null,null,null,null,null,null,0,null,1,null,1,null,1,null,1,null,1,null,null,null,null,null,null,null,null,null,null,null,null,null,null,null,null,null,null,null,null,null,null,null,null,null,null,null,null,null,null,null,null,null,null,null,null,null,null,null,null,null,0,0,0,0,null,null,0,0,0,0,0,0,0,0,0,0,0,0,0,0,0,0,0,0,0,0,0,0,0,0,0,0,0,0]
[null,null,null,"Notification and consultation requirements - Steps 10-15",null,null,null,null,null,null,0,null,null,null,null,null,null,null,null,null,null,null,null,null,null,null,null,null,null,null,null,null,null,null,null,null,null,null,null,null,null,null,null,null,null,null,null,null,null,null,null,null,null,null,null,null,null,null,null,null,null,null,0,0,0,0,{"$f":"Q294*Q$17","v":0},{"$f":"R294*R$17","v":0},0,0,0,0,0,0,0,0,0,0,0,0,0,0,0,0,0,0,0,0,0,0,0,0,0,0,0,0]
[null,null,null,"Refer to the environmental planning approval documentation (eg SER, REF or DA)",null,null,null,null,null,null,0,null,null,1,null,1,null,1,null,null,null,null,null,null,null,null,null,null,null,null,null,null,null,null,null,null,null,null,null,null,null,null,null,null,null,null,null,null,null,null,null,null,null,null,null,null,null,null,null,null,null,null,0,0,0,0,null,null,0,0,0,0,0,0,0,0,0,0,0,0,0,0,0,0,0,0,0,0,0,0,0,0,0,0,0,0]
[null,null,null,"Works require 40 days notice to Council (scope of works and consideration of responses)",null,"[Letter templates]",null,null,null,null,0,null,null,null,null,null,null,null,null,null,null,1,null,null,null,null,null,null,null,null,null,null,null,null,null,1,null,null,null,null,null,null,null,null,null,null,null,null,null,null,null,null,null,null,null,null,null,null,null,null,null,null,0,0,0,0,{"$f":"Q296*Q$17","v":0},{"$f":"R296*R$17","v":0},0,0,0,0,0,0,0,0,0,0,0,0,0,0,0,0,0,0,0,0,0,0,0,0,0,0,0,0]
[null,null,null,"Works require OEH (NPWS) notification and/or approval:\n \na. Inspection works - provide at least 4 days notice for inspection works (unless undertaken by foot or passenger vehicle and do not require the use of equipment)\nb. Maintenance works - provide at least 2 weeks notice along with a conservation risk assessment\nc. Emergency works - provide notice as soon as possible\nd. Other works - will typically require a Part 5 assessment using the NPWS template\n\nNotices and CRAs can be generated from the WebGIS EL",null,"[WebGIS EL]\n",null,null,null,null,0,null,null,null,null,null,null,null,null,null,null,1,null,null,null,null,null,null,null,null,null,null,null,null,null,null,null,1,null,null,null,null,null,null,null,null,null,null,null,null,null,null,null,null,null,null,null,null,null,null,null,null,0,0,0,0,0,0,0,0,0,0,0,0,0,0,0,0,0,0,0,0,0,0,0,0,0,0,0,0,0,0,0,0,0,0]
[null,null,null,"Works require 21 days notice to Council (scope of works and consideration of responses)",null,"[Letter templates]",null,null,null,null,0,null,1,null,1,null,1,null,1,null,null,1,null,null,null,null,null,null,null,null,null,null,null,null,null,null,null,null,null,1,null,null,null,null,null,null,null,null,null,null,null,null,null,null,null,null,null,null,null,null,null,null,0,0,0,0,null,null,0,0,0,0,0,0,0,0,0,0,0,0,0,0,0,0,0,0,0,0,0,0,0,0,0,0,0,0]
[null,null,null,"Works require 21 days notice to Authorities (scope of works and consideration of responses)",null,"[Letter templates]",null,null,null,null,0,null,1,null,1,null,1,null,1,null,null,1,null,null,null,null,null,null,null,null,null,null,null,null,null,null,null,null,null,null,null,1,null,null,null,null,null,null,null,null,null,null,null,null,null,null,null,null,null,null,null,null,0,0,0,0,null,null,0,0,0,0,0,0,0,0,0,0,0,0,0,0,0,0,0,0,0,0,0,0,0,0,0,0,0,0]
[null,null,null,"Works require 21 days notice to occupiers of adjoining land (scope of works and consideration of responses)",null,"[Letter templates]",null,null,null,null,0,null,1,null,1,null,1,null,1,null,null,1,null,null,null,null,null,null,null,null,null,null,null,null,null,null,null,null,null,null,null,null,null,1,null,null,null,null,null,null,null,null,null,null,null,null,null,null,null,null,null,null,0,0,0,0,null,null,0,0,0,0,0,0,0,0,0,0,0,0,0,0,0,0,0,0,0,0,0,0,0,0,0,0,0,0]
[null,null,null,"Works require other notification(s) (see Step 15)",null,null,null,null,null,null,0,null,null,null,null,null,null,null,null,null,null,1,null,null,null,null,null,null,null,null,null,null,null,null,null,null,null,null,null,null,null,null,null,null,null,1,null,null,null,null,null,null,null,null,null,null,null,null,null,null,null,null,0,0,0,0,{"$f":"Q301*Q$17","v":0},{"$f":"R301*R$17","v":0},0,0,0,0,0,0,0,0,0,0,0,0,0,0,0,0,0,0,0,0,0,0,0,0,0,0,0,0]
[null,null,null,"Contact Environmental Services. Further assessment is required.",null,null,null,null,null,null,0,null,1,null,1,null,1,null,1,null,1,null,null,null,null,null,null,null,null,null,null,null,null,null,null,null,null,null,null,null,null,null,null,null,null,null,null,null,null,null,null,null,null,null,null,null,null,null,null,null,null,null,0,0,0,0,null,null,0,0,0,0,0,0,0,0,0,0,0,0,0,0,0,0,0,0,0,0,0,0,0,0,0,0,0,0]
[null,null,null,"Compliance checklist - Step 16",null,null,null,null,null,null,0,null,null,null,null,null,null,null,null,null,null,null,null,null,null,null,null,null,null,null,null,null,null,null,null,null,null,null,null,null,null,null,null,null,null,null,null,null,null,null,null,null,null,null,null,null,null,null,null,null,null,null,0,0,0,0,{"$f":"Q303*Q$17","v":0},{"$f":"R303*R$17","v":0},0,0,0,0,0,0,0,0,0,0,0,0,0,0,0,0,0,0,0,0,0,0,0,0,0,0,0,0]
[null,null,null,"- Before works - ensure planning approval process above is followed, other approvals/permits/licences are obtained and notifications provided and considered (see above)\n- During works - comply with conditions of the planning approval and any licences, approvals or permits (see above)\n- All works are to comply with the environmental handbook",null,"Environmental Handbook",null,null,null,null,0]
[null,null,null,"- Pay particular attention to the following requirements:",null,null,null,null,null,null,{"$f":"IF(q_16=\"n\",1,0)","v":1}]
[null,null,null,"SEDIMENT - Prevent sediment, drilling fluid/mud and saw cutting runoff from entering a stormwater drain or waterway (eg minimise ground disturbance, sediment controls, clean vehicles leaving the site, inspect and maintain controls, restore surfaces etc.)",null,"[Section 2.1]",null,null,null,null,{"$f":"IF(q_16=\"n\",1,IF(Q_161=FALSE,1,0))","v":1}]
[null,null,null,"WATER DISCHARGES - Ensure all water discharges from pits, trenches and substations meet specific discharge criteria outlined in the Environmental Handbook and staff are trained in relevant procedures.",null,"[Section 2.2]",null,null,null,null,{"$f":"IF(q_16=\"n\",1,IF(q_162=FALSE,1,0))","v":1}]
[null,null,null,"OILS,FUELS AND CHEMICALS - Oils, fuel and other chemicals are to be handled, transported and stored in a manner to prevent discharge to the environment and spill control equipment available to respond to any leaks or spills (eg training, bunding, spill kits, labelling etc.)",null,"[Section 2.3]",null,null,null,null,{"$f":"IF(q_16=\"n\",1,IF(q_163=FALSE,1,0))","v":1}]
[null,null,null,"ASBESTOS - The potential for asbestos is to be assessed and where identified, managed in accordance with training, PPE, licencing, record keeping, notification, bagging, transport, waste tracking, disposal and specific work instruction requirements.",null,"[Section 3.1]",null,null,null,null,{"$f":"IF(q_16=\"n\",1,IF(q_164=FALSE,1,0))","v":1}]
[null,null,null,"PCBs - PCBs are to be appropriately classified, handled, transported, stored, labelled, disposed and managed in accordance with Ausgrid’s PCB licence.",null,"[Section 3.2]",null,null,null,null,{"$f":"IF(q_16=\"n\",1,IF(q_165=FALSE,1,0))","v":1}]
[null,null,null,"PESTICIDES - Pesticide applications are to be in accordance with the label, restricted to target areas, approved for use, not used during rain or high wind, and in compliance with training, record keeping, notification and signage requirements.",null,"[Section 3.3]",null,null,null,null,{"$f":"IF(q_16=\"n\",1,IF(q_166=FALSE,1,0))","v":1}]
[null,null,null,"LEAD - Potential for lead exposure assessed and where identified, managed in accordance with training, PPE, hygiene, notification and disposal requirements.",null,"[Section 3.4]",null,null,null,null,{"$f":"IF(q_16=\"n\",1,IF(q_167=FALSE,1,0))","v":1}]
[null,null,null,"MERCURY - Mercury stored and transported in a labelled, leak proof and airtight container and disposed/recycled in accordance with legal requirements.",null,"[Section 3.5]",null,null,null,null,{"$f":"IF(q_16=\"n\",1,IF(q_168=FALSE,1,0))","v":1}]
[null,null,null,"DUST AND FUMES - Prevent dust, fumes and other gases from leaving the work site.",null,"[Section 4.1]",null,null,null,null,{"$f":"IF(q_16=\"n\",1,IF(q_169=FALSE,1,0))","v":1}]
[null,null,null,"CONSTRUCTION NOISE - Minimise construction noise impacts (eg scheduling, equipment, awareness, site layout) and comply with the notification and out of hours work requirements.",null,"[Section 4.2]",null,null,null,null,{"$f":"IF(q_16=\"n\",1,IF(q_1610=FALSE,1,0))","v":1}]
[null,null,null,"CONTAMINATED LAND - If suspected contaminated land is encountered stop works and contact Environmental Services (eg strange odours/colours, USTs, buried waste, oil staining etc.)",null,"[Section 5.1]",null,null,null,null,{"$f":"IF(q_16=\"n\",1,IF(q_1611=FALSE,1,0))","v":1}]
[null,null,null,"ACID SULFATE SOILS - ASS are to be classified, managed, stored, treated and disposed in accordance with Ausgrid's generic ASS Management Plan (eg minimise ground disturbance, minimise time soil is exposed to air, arrange testing prior to disposal etc.)",null,"[Section 5.2]",null,null,null,null,{"$f":"IF(q_16=\"n\",1,IF(q_1612=FALSE,1,0))","v":1}]
[null,null,null,"WASTE - All wastes are to be appropriately classified, handled, stored, transported and disposed and in compliance with licence and waste tracking requirements.",null,"[Section 5.3]",null,null,null,null,{"$f":"IF(q_16=\"n\",1,IF(q_1613=FALSE,1,0))","v":1}]
[null,null,null,"RECOVERED MATERIALS - All wastes are to be appropriately classified, handled, stored, transported and disposed and in compliance with licence and waste tracking requirements.",null,"[Section 5.4]",null,null,null,null,{"$f":"IF(q_16=\"n\",1,IF(q_1614=FALSE,1,0))","v":1}]
[null,null,null,"VEGETATION - Comply with any required approvals required for protected vegetation/areas (see step 5 above)\n- Where working in the vicinity of protected vegetation/areas implement controls to prevent unauthorised harm (eg awareness, exclusion zones etc.)\n- Implement controls to minimise vegetation impacts (eg correct pruning methods, no impacts to SRZ, protect TPZ etc.)",null,"[Section 6.1]",null,null,null,null,{"$f":"IF(q_16=\"n\",1,IF(q_1615=FALSE,1,0))","v":1}]
[null,null,null,"WEEDS - Implement controls to prevent the spread of weeds and pathogens (eg keep to access tracks where possible, clean vehicles and equipment prior to entering bushland/leaving infested areas etc.)",null,"[Section 6.3]",null,null,null,null,{"$f":"IF(q_16=\"n\",1,IF(q_1616=FALSE,1,0))","v":1}]
[null,null,null,"HOT WORKS - Implement controls during hot works to prevent the spread of fire (eg works clear of combustible materials >3m, fire fighting equipment on hand etc.)\n- Ensure all hot works during a Total Fire Ban are preferably deferred or if required compliant with exemptions.",null,"[Section 6.4]",null,null,null,null,{"$f":"IF(q_16=\"n\",1,IF(q_1617=FALSE,1,0))","v":1}]
[null,null,null,"ABORIGINAL HERITAGE - Comply with any required Aboriginal heritage approvals (see step 4 above)\n- Where working in the vicinity of Aboriginal heritage implement controls to prevent unauthorised harm (eg awareness, exclusion zones etc.) \n- Contact Environmental Services if potential Aboriginal heritage items are discovered.",null,"[Section 7.1]",null,null,null,null,{"$f":"IF(q_16=\"n\",1,IF(q_1618=FALSE,1,0))","v":1}]
[null,null,null,"NON ABORIGINAL HERITAGE - Comply with any required Non Aboriginal heritage approvals, CMPs, exemptions (see step 7 above)\n- Where working in the vicinity of heritage implement controls to prevent unauthorised harm (eg awareness, exclusion zones etc.) \n- Contact Environmental Services if potential heritage items are discovered.",null,"[Section 7.2]",null,null,null,null,{"$f":"IF(q_16=\"n\",1,IF(q_1619=FALSE,1,0))","v":1}]
[null,null,null,"POTABLE WATER - Water use minimised and in accordance with the water restrictions, water use exemptions, water saving rules and washbays used in accordance with the relevant trade waste agreement.",null,"[Section 8.2]",null,null,null,null,{"$f":"IF(q_16=\"n\",1,IF(q_1620=FALSE,1,0))","v":1}]
[null,null,null,null,null,null,null,null,null,null,{"$f":"MAX(BK326:CR326)","v":0},null,null,null,null,null,null,null,null,null,null,null,null,null,null,null,null,null,null,null,null,null,null,null,null,null,null,null,null,null,null,null,null,null,null,null,null,null,null,null,null,null,null,null,null,null,null,null,null,null,null,null,{"$f":"M326*M$17","v":0},0,0,0,{"$f":"Q326*Q$17","v":0},0,{"$f":"S326*S$17","v":0},0,0,0,0,0,0,0,{"$f":"AA326*AA$17","v":0},0,0,0,0,0,0,0,0,0,{"$f":"AK326*AK$17","v":0},0,0,0,0,0,0,0,0,0]
[null,null,null,null,null,null,null,null,null,null,0,null,null,null,null,null,null,null,null,null,null,null,null,null,null,null,null,null,null,null,null,null,null,null,null,null,null,null,null,null,null,null,null,null,null,null,null,null,null,null,null,null,null,null,null,null,null,null,null,null,null,null,0,0,0,0,0,0,0,0,0,0,0,0,0,0,0,0,0,0,0,0,0,0,0,0,0,0,0,0,0,0,0,0,0,0]
[null,"Specific Instructions for the project",null,null,null,null,null,null,null,null,0,null,null,null,null,null,null,null,null,null,null,null,null,null,null,null,null,null,null,null,null,null,null,null,null,null,null,null,null,null,null,null,null,null,null,null,null,null,null,null,null,null,null,null,null,null,null,null,null,null,null,null,0,0,0,0,0,0,0,0,0,0,0,0,0,0,0,0,0,0,0,0,0,0,0,0,0,0,0,0,0,0,0,0,0,0]
[null,null,null,null,null,null,null,null,null,null,0,null,null,null,null,null,null,null,null,null,null,null,null,null,null,null,null,null,null,null,null,null,null,null,null,null,null,null,null,null,null,null,null,null,null,null,null,null,null,null,null,null,null,null,null,null,null,null,null,null,null,null,0,0,0,0,0,0,0,0,0,0,0,0,0,0,0,0,0,0,0,0,0,0,0,0,0,0,0,0,0,0,0,0,0,0]
[null,null,null,null,null,null,null,null,null,null,0]
[null,"STEP 17. Detail any specific controls required to ensure compliance with the above assessment",null,null,null,null,null,null,null,null,0]
[null,null,null,null,null,null,null,null,null,null,{"$f":"MAX(BK332:CR332)","v":0},null,null,null,null,null,null,null,null,null,null,null,null,null,null,null,null,null,null,null,null,null,null,null,null,null,null,null,null,null,null,null,null,null,null,null,null,null,null,null,null,null,null,null,null,null,null,null,null,null,null,null,0,0,0,0,0,0,0,0,0,0,0,0,0,0,0,0,0,0,0,0,0,0,0,0,0,0,0,0,0,0,0,0,0,0]
[null,null,{"$f":"IF(ISBLANK(D333),\"                   Enter any additional specific instructions here to ensure compliance with the assessment above\",\"\")","v":"                   Enter any additional specific instructions here to ensure compliance with the assessment above"},null,null,null,null,null,null,null,0]
[null,null,null,null,null,null,null,null,null,null,0,null,null,null,null,null,null,null,null,null,null,null,null,null,null,null,null,null,null,null,null,null,null,null,null,null,null,null,null,null,null,null,null,null,null,null,null,null,null,null,null,null,null,null,null,null,null,null,null,null,null,null,{"$f":"M334*M$17","v":0},{"$f":"N334*N$17","v":0},{"$f":"O334*O$17","v":0},{"$f":"P334*P$17","v":0},{"$f":"Q334*Q$17","v":0},0,{"$f":"S334*S$17","v":0},0,0,0,0,0,0,0,0,0,0,0,0,0,0,0,0,0,0,0,0,0,0,0,0,0,0,0]
[null,null,null,null,null,null,null,null,null,null,0]

{"sheet":"Help","index":1,"n_rows":21,"n_cols":2,"rows_kept":21,"cut":false,"hidden":false,"merged":[[16,1,16,5],[12,1,12,11]]}
[]
[]
[]
[]
[]
[]
[]
[]
[]
[]
[null,"NOTE: If clicking the 'Click here to start' button does not work it is because:"]
[]
[null,"1. You have a version of MS Office earlier than 2007."]
[]
[null,"or"]
[]
[null,"2. You didn't 'Save As' from the Planning Website. Please go back here and resave."]
[]
[null,"or"]
[]
[null,"3. You haven't enabled macros -->"]